T,Company(T),Bvaser(T),Bvasdiv(T),Cipfa2(T),Cipfa3(T),Account,Account(T),Updated,TransNo,Amount,Montype(T),Supplier name,SuppID,Supplier group,TT,Period,Cat1,TC,Text
B,Bromsgrove District Council,Not BVACOP Service,Not BVACOP Sub Division,Supplies and Services,Miscellaneous expenses,D99,Workflow only - must change code before saving,04/03/2013,171548,895.54,Revenue income and expenditure,Royal Mail Group Plc,1558,1,VN,201212,RB99,P3,
B,Bromsgrove District Council,Cultural and Related Services,Museums and Gallaries,Supplies and Services,Miscellaneous expenses,D99,Workflow only - must change code before saving,04/03/2013,176543,24.15,Revenue income and expenditure,Daisy Communications,7578,1,VN,201212,MT91,P1,
B,Bromsgrove District Council,Cultural and Related Services,Museums and Gallaries,Supplies and Services,Miscellaneous expenses,D88,Miscellaneous expenses,07/03/2013,176770,53.00,Revenue income and expenditure,MODES Users Association,2435,1,VN,201212,MT91,P1,
B,Bromsgrove District Council,Cultural and Related Services,Museums and Gallaries,Supplies and Services,Miscellaneous expenses,D99,Workflow only - must change code before saving,04/03/2013,176917,24.15,Revenue income and expenditure,Daisy Communications,7578,1,VN,201212,MT91,P1,
B,Bromsgrove District Council,Cultural and Related Services,Museums and Gallaries,Supplies and Services,Miscellaneous expenses,D99,Workflow only - must change code before saving,04/03/2013,177455,24.15,Revenue income and expenditure,Daisy Communications,7578,1,VN,201212,MT91,P1,
B,Bromsgrove District Council,Planning and Development Services,Supplementary planning guidance,Supplies and Services,Communication and computing,D53,Postage/packaging,04/03/2013,178032,1.38,Revenue income and expenditure,Royal Mail Group Plc,1558,1,VN,201212,LP01,P1,
B,Bromsgrove District Council,Environmental Services,Community Safety (Crime Reduction),Supplies and Services,Communication and computing,D53,Postage/packaging,04/03/2013,178032,5.98,Revenue income and expenditure,Royal Mail Group Plc,1558,1,VN,201212,CS23,P1,
B,Bromsgrove District Council,,,Supplies and Services,Communication and computing,D51,Printing and stationery,04/03/2013,178032,13.80,Revenue income and expenditure,Royal Mail Group Plc,1558,1,VN,201212,CC01,P1,
B,Bromsgrove District Council,Surpluses/deficits on trading undertakings,Internal Business Units and Support Services,Supplies and Services,Communication and computing,D53,Postage/packaging,04/03/2013,178032,7.43,Revenue income and expenditure,Royal Mail Group Plc,1558,1,VN,201212,FS00,P1,
B,Bromsgrove District Council,Not BVACOP Service,Not BVACOP Sub Division,Supplies and Services,Communication and computing,D53,Postage/packaging,04/03/2013,178032,251.68,Revenue income and expenditure,Royal Mail Group Plc,1558,1,VN,201212,RB99,P1,
B,Bromsgrove District Council,Highways and transport services,Off-street Parking,Supplies and Services,Communication and computing,D51,Printing and stationery,04/03/2013,178032,5.06,Revenue income and expenditure,Royal Mail Group Plc,1558,1,VN,201212,CP00,P1,
B,Bromsgrove District Council,Highways and transport services,Street Lighting,Premise Related Expenditure,Energy Costs,B22,Electricity,21/03/2013,178666,19.51,Revenue income and expenditure,Npower Limited,2080,1,VN,201212,HW08,P2,
B,Bromsgrove District Council,Surpluses/deficits on trading undertakings,Depot Services,Supplies and Services,"Equipment, furniture and materials",D06,Materials - purchased,28/03/2013,178733,13.88,Revenue income and expenditure,Senate Electrical,9582,1,VP,201212,DP02,P1,
B,Bromsgrove District Council,Surpluses/deficits on trading undertakings,Depot Services,Supplies and Services,"Equipment, furniture and materials",D06,Materials - purchased,28/03/2013,178734,151.06,Revenue income and expenditure,Senate Electrical,9582,1,VP,201212,DP02,P1,
B,Bromsgrove District Council,Surpluses/deficits on trading undertakings,Depot Services,Supplies and Services,"Equipment, furniture and materials",D06,Materials - purchased,28/03/2013,178735,114.50,Revenue income and expenditure,Senate Electrical,9582,1,VP,201212,DP02,P1,
B,Bromsgrove District Council,Surpluses/deficits on trading undertakings,Depot Services,Supplies and Services,"Equipment, furniture and materials",D06,Materials - purchased,28/03/2013,178749,75.00,Revenue income and expenditure,Senate Electrical,9582,1,VP,201212,DP02,P1,
B,Bromsgrove District Council,Surpluses/deficits on trading undertakings,Depot Services,Supplies and Services,"Equipment, furniture and materials",D06,Materials - purchased,28/03/2013,178794,154.00,Revenue income and expenditure,Senate Electrical,9582,1,VP,201212,DT41,P1,
B,Bromsgrove District Council,Surpluses/deficits on trading undertakings,Depot Services,Supplies and Services,"Equipment, furniture and materials",D06,Materials - purchased,28/03/2013,178794,117.27,Revenue income and expenditure,Senate Electrical,9582,1,VP,201212,DP02,P1,
B,Bromsgrove District Council,Highways and transport services,Off-street Parking,Supplies and Services,"Equipment, furniture and materials",D06,Materials - purchased,28/03/2013,178794,5.03,Revenue income and expenditure,Senate Electrical,9582,1,VP,201212,CP00,P1,
B,Bromsgrove District Council,Cultural and Related Services,Museums and Gallaries,Supplies and Services,Miscellaneous expenses,D99,Workflow only - must change code before saving,04/03/2013,178826,24.15,Revenue income and expenditure,Daisy Communications,7578,1,VN,201212,MT91,P1,
B,Bromsgrove District Council,Cultural and Related Services,Outdoor sports and recreation facilities,Premise Related Expenditure,Energy Costs,B22,Electricity,12/03/2013,178930,117.87,Revenue income and expenditure,Npower Limited,2080,1,VN,201212,RG62,P2,
B,Bromsgrove District Council,Cultural and Related Services,Community parks and open spaces,Premise Related Expenditure,Energy Costs,B22,Electricity,25/03/2013,178931,330.43,Revenue income and expenditure,Npower Limited,2080,1,VN,201212,SP00,P1,
B,Bromsgrove District Council,Cultural and Related Services,Indoor Sports and Recreation Facilities,Supplies and Services,Services,D47,Consultants' fees,19/03/2013,178943,158.85,Revenue income and expenditure,The Sports Consultancy,10021,1,VN,201212,SC01,P1,
B,Bromsgrove District Council,Highways and transport services,Street Lighting,Premise Related Expenditure,Energy Costs,B22,Electricity,04/03/2013,179067,2.30,Revenue income and expenditure,Npower Limited,2080,1,VN,201212,HW08,P1,
B,Bromsgrove District Council,Highways and transport services,Street Lighting,Premise Related Expenditure,Energy Costs,B22,Electricity,04/03/2013,179071,2.30,Revenue income and expenditure,Npower Limited,2080,1,VN,201212,HW08,P1,
B,Bromsgrove District Council,Surpluses/deficits on trading undertakings,Internal Business Units and Support Services,Supplies and Services,Communication and computing,D56,Computer - hardware,04/03/2013,179143,32.50,Revenue income and expenditure,Black Box Network Services UK Ltd,8951,1,VO,201212,IT12,P1,
B,Bromsgrove District Council,Surpluses/deficits on trading undertakings,Internal Business Units and Support Services,Supplies and Services,Communication and computing,D56,Computer - hardware,04/03/2013,179144,97.30,Revenue income and expenditure,Black Box Network Services UK Ltd,8951,1,VO,201212,IT12,P1,
B,Bromsgrove District Council,Corporate and Democratic Core,Corporate Management,Supplies and Services,Communication and computing,D59,Telephones,28/03/2013,179201,259.53,Revenue income and expenditure,Vodafone Ltd (Corporate),1682,1,VN,201212,CM01,P1,
B,Bromsgrove District Council,Cultural and Related Services,Tree Planting Services,Supplies and Services,Communication and computing,D59,Telephones,28/03/2013,179201,54.00,Revenue income and expenditure,Vodafone Ltd (Corporate),1682,1,VN,201212,TW00,P1,
B,Bromsgrove District Council,Surpluses/deficits on trading undertakings,Internal Business Units and Support Services,Supplies and Services,Communication and computing,D57,Computer - software,14/03/2013,179240,"4,094.10",Revenue income and expenditure,Phoenix Software Ltd,2091,1,VP,201212,IT12,P1,
B,Bromsgrove District Council,Surpluses/deficits on trading undertakings,Internal Business Units and Support Services,Supplies and Services,Communication and computing,D57,Computer - software,14/03/2013,179240,"4,094.10",Revenue income and expenditure,Phoenix Software Ltd,2091,1,VP,201212,IT10,P1,
B,Bromsgrove District Council,Cultural and Related Services,Museums and Gallaries,Supplies and Services,Miscellaneous expenses,D99,Workflow only - must change code before saving,05/03/2013,179375,24.15,Revenue income and expenditure,Daisy Communications,7578,1,VN,201212,MT91,P1,
B,Bromsgrove District Council,Surpluses/deficits on trading undertakings,Depot Services,Transport Related Expenditure,Direct Transport Costs,C01,Vehicle repairs/maint'ce,14/03/2013,179384,"1,342.50",Revenue income and expenditure,WasteParts UK Ltd,6508,1,VO,201212,DW11,P1,
B,Bromsgrove District Council,Highways and transport services,Street Lighting,Premise Related Expenditure,Energy Costs,B22,Electricity,04/03/2013,179398,2.29,Revenue income and expenditure,Npower Limited,2080,1,VN,201212,HW08,P1,
B,Bromsgrove District Council,Highways and transport services,Street Lighting,Premise Related Expenditure,Energy Costs,B22,Electricity,04/03/2013,179399,2.29,Revenue income and expenditure,Npower Limited,2080,1,VN,201212,HW08,P1,
B,Bromsgrove District Council,Surpluses/deficits on trading undertakings,Depot Services,Premise Related Expenditure,Fixtures and Fittings,B60,External fixtures/fittings - purchase,07/03/2013,179436,"1,350.00",Revenue income and expenditure,Broxap Limited,3119,1,VP,201212,DW21,P1,
B,Bromsgrove District Council,Highways and transport services,Street Lighting,Premise Related Expenditure,Energy Costs,B22,Electricity,05/03/2013,179572,2.29,Revenue income and expenditure,Npower Limited,2080,1,VN,201212,HW08,P1,
B,Bromsgrove District Council,Highways and transport services,Street Lighting,Premise Related Expenditure,Energy Costs,B22,Electricity,05/03/2013,179573,2.29,Revenue income and expenditure,Npower Limited,2080,1,VN,201212,HW08,P1,
B,Bromsgrove District Council,Cultural and Related Services,Outdoor sports and recreation facilities,Premise Related Expenditure,Energy Costs,B22,Electricity,12/03/2013,179578,75.77,Revenue income and expenditure,Npower Limited,2080,1,VN,201212,RG64,P2,
B,Bromsgrove District Council,Cultural and Related Services,Outdoor sports and recreation facilities,Premise Related Expenditure,Energy Costs,B22,Electricity,12/03/2013,179584,50.06,Revenue income and expenditure,Npower Limited,2080,1,VN,201212,RG62,P2,
B,Bromsgrove District Council,Surpluses/deficits on trading undertakings,Internal Business Units and Support Services,Supplies and Services,Communication and computing,D77,Internet,04/03/2013,179603,86.70,Revenue income and expenditure,British Telecommunications plc,1098,1,VN,201212,IT12,P1,
B,Bromsgrove District Council,,,Employees,Direct Employee Expenses,A10,Agency workers,07/03/2013,179626,850.00,Revenue income and expenditure,Morgan Hunt UK Ltd,9519,1,VO,201212,RB10,P1,
B,Bromsgrove District Council,,,Premise Related Expenditure,"Repairs, alterations and maint. of buildings",B02,External repair/maint. (reg'd for gross pay't),01/03/2013,179629,90.65,Revenue income and expenditure,PJA Electrics  Ltd,2892,2,VP,201212,MH04,P1,
B,Bromsgrove District Council,Surpluses/deficits on trading undertakings,Internal Business Units and Support Services,Supplies and Services,Communication and computing,D57,Computer - software,04/03/2013,179632,"28,599.81",Revenue income and expenditure,Capita Business Services Ltd,1107,1,VN,201212,IT12,P1,
B,Bromsgrove District Council,,,Third Party Payments,Other Local authorities,E31,Other local authorities,19/03/2013,179635,"5,519.91",Revenue income and expenditure,Redditch Borough Council,1533,5,VN,201212,RB10,P1,
B,Bromsgrove District Council,,,Third Party Payments,Other Local authorities,E31,Other local authorities,19/03/2013,179635,"5,380.69",Revenue income and expenditure,Redditch Borough Council,1533,5,VN,201212,RB02,P1,
B,Bromsgrove District Council,Surpluses/deficits on trading undertakings,Depot Services,Transport Related Expenditure,Direct Transport Costs,C01,Vehicle repairs/maint'ce,14/03/2013,179646,136.00,Revenue income and expenditure,Imperial Commercials Ltd.,1403,1,VP,201212,DW11,P4,
B,Bromsgrove District Council,Surpluses/deficits on trading undertakings,Depot Services,Transport Related Expenditure,Direct Transport Costs,C01,Vehicle repairs/maint'ce,14/03/2013,179646,35.00,Revenue income and expenditure,Imperial Commercials Ltd.,1403,1,VP,201212,DW11,P1,
B,Bromsgrove District Council,Not BVACOP Service,Not BVACOP Sub Division,Current Assets,Stocks,300,Stock Movement,05/03/2013,179647,195.69,,Farid Municipal Vehicles Ltd.,5118,1,VO,201212,XX611,P1,
B,Bromsgrove District Council,,,Supplies and Services,Communication and computing,D57,Computer - software,05/03/2013,179655,"4,935.24",Revenue income and expenditure,Capita Business Services Ltd,1107,1,VO,201212,RB10,P1,
B,Bromsgrove District Council,Surpluses/deficits on trading undertakings,Depot Services,Supplies and Services,Communication and computing,D59,Telephones,21/03/2013,179657,"3,087.40",Revenue income and expenditure,Vodafone Ltd,9580,1,VP,201212,BT01,P1,
B,Bromsgrove District Council,,,Premise Related Expenditure,"Repairs, alterations and maint. of buildings",B02,External repair/maint. (reg'd for gross pay't),01/03/2013,179693,0.00,Revenue income and expenditure,PJA Electrics  Ltd,2892,2,VO,201212,MH04,P1,
B,Bromsgrove District Council,,,Premise Related Expenditure,"Repairs, alterations and maint. of buildings",B04,Repair/maint'ce (CIS tax deductible),01/03/2013,179693,246.55,Revenue income and expenditure,PJA Electrics  Ltd,2892,2,VO,201212,MH04,P1,
B,Bromsgrove District Council,Surpluses/deficits on trading undertakings,Internal Business Units and Support Services,Premise Related Expenditure,Cleaning and domestic supplies,B80,Contract cleaning,07/03/2013,179696,659.75,Revenue income and expenditure,We Clean Ltd,2966,1,VP,201212,ES20,P1,
B,Bromsgrove District Council,Surpluses/deficits on trading undertakings,Internal Business Units and Support Services,Supplies and Services,Services,D47,Consultants' fees,28/03/2013,179706,"1,500.00",Revenue income and expenditure,Sarah Reid,10284,1,VP,201212,LS00,P1,
B,Bromsgrove District Council,Highways and transport services,Street Lighting,Premise Related Expenditure,Energy Costs,B22,Electricity,05/03/2013,179711,2.29,Revenue income and expenditure,Npower Limited,2080,1,VN,201212,HW08,P1,
B,Bromsgrove District Council,Highways and transport services,Street Lighting,Premise Related Expenditure,Energy Costs,B22,Electricity,05/03/2013,179712,2.29,Revenue income and expenditure,Npower Limited,2080,1,VN,201212,HW08,P1,
B,Bromsgrove District Council,,,Supplies and Services,Services,D42,Seminar and course fees,06/03/2013,179715,512.50,Revenue income and expenditure,Capita Business Services Ltd,1107,1,VO,201212,RB03,P1,
B,Bromsgrove District Council,,,Supplies and Services,Services,D42,Seminar and course fees,06/03/2013,179715,512.50,Revenue income and expenditure,Capita Business Services Ltd,1107,1,VO,201212,RB01,P1,
B,Bromsgrove District Council,Not BVACOP Service,Not BVACOP Sub Division,Current Assets,Stocks,300,Stock Movement,29/03/2013,179731,283.50,,Scarab Sweepers Ltd,5827,1,VO,201212,XX611,P1,
B,Bromsgrove District Council,Surpluses/deficits on trading undertakings,Internal Business Units and Support Services,Supplies and Services,Communication and computing,D57,Computer - software,07/03/2013,179738,"1,517.39",Revenue income and expenditure,Prestige Systems Ltd.,8836,1,VP,201212,IT12,P1,
B,Bromsgrove District Council,Surpluses/deficits on trading undertakings,Internal Business Units and Support Services,Supplies and Services,Communication and computing,D57,Computer - software,07/03/2013,179742,"2,430.00",Revenue income and expenditure,Certero Ltd,10299,1,VO,201212,IT12,P1,
B,Bromsgrove District Council,Not BVACOP Service,Not BVACOP Sub Division,Capital Expenditure,"Plant, vehicles and equipment",X20,Vehicles,04/03/2013,179743,"1,735.00",Capital income and expenditure,Advanced Lining Systems Ltd,10311,1,VN,201212,CAPR,P1,
B,Bromsgrove District Council,Not BVACOP Service,Not BVACOP Sub Division,Capital Expenditure,"Plant, vehicles and equipment",X20,Vehicles,04/03/2013,179744,"1,735.00",Capital income and expenditure,Advanced Lining Systems Ltd,10311,1,VN,201212,CAPR,P1,
B,Bromsgrove District Council,Not BVACOP Service,Not BVACOP Sub Division,Capital Expenditure,"Plant, vehicles and equipment",X20,Vehicles,04/03/2013,179745,"1,735.00",Capital income and expenditure,Advanced Lining Systems Ltd,10311,1,VN,201212,CAPR,P1,
B,Bromsgrove District Council,Not BVACOP Service,Not BVACOP Sub Division,Capital Expenditure,"Plant, vehicles and equipment",X20,Vehicles,04/03/2013,179746,"2,095.00",Capital income and expenditure,Advanced Lining Systems Ltd,10311,1,VN,201212,CAPR,P1,
B,Bromsgrove District Council,Surpluses/deficits on trading undertakings,Internal Business Units and Support Services,Supplies and Services,"Equipment, furniture and materials",D03,Equipment - rental/lease,05/03/2013,179747,"1,235.77",Revenue income and expenditure,Ricoh UK Ltd,6528,1,VN,201212,PS01,P1,
B,Bromsgrove District Council,Surpluses/deficits on trading undertakings,Internal Business Units and Support Services,Supplies and Services,Communication and computing,D51,Printing and stationery,05/03/2013,179748,793.60,Revenue income and expenditure,Ricoh UK Ltd,6528,1,VN,201212,PS01,P1,
B,Bromsgrove District Council,Surpluses/deficits on trading undertakings,Internal Business Units and Support Services,Supplies and Services,Communication and computing,D51,Printing and stationery,05/03/2013,179749,277.40,Revenue income and expenditure,Ricoh UK Ltd,6528,1,VN,201212,PS01,P1,
B,Bromsgrove District Council,Surpluses/deficits on trading undertakings,Depot Services,Supplies and Services,Services,D47,Consultants' fees,05/03/2013,179750,"2,672.73",Revenue income and expenditure,Vanguard Consulting Ltd.,9322,3,VN,201212,BT03,P1,
B,Bromsgrove District Council,Surpluses/deficits on trading undertakings,Depot Services,Supplies and Services,Services,D47,Consultants' fees,05/03/2013,179750,"9,327.27",Revenue income and expenditure,Vanguard Consulting Ltd.,9322,3,VN,201212,BT01,P1,
B,Bromsgrove District Council,Corporate and Democratic Core,Corporate Management,Supplies and Services,Communication and computing,D51,Printing and stationery,11/03/2013,179751,37.49,Revenue income and expenditure,Redditch Borough Council,1533,5,VN,201212,CS00,P1,
B,Bromsgrove District Council,Corporate and Democratic Core,Corporate Management,Supplies and Services,Miscellaneous expenses,D88,Miscellaneous expenses,11/03/2013,179751,308.81,Revenue income and expenditure,Redditch Borough Council,1533,5,VN,201212,CS00,P1,
B,Bromsgrove District Council,Surpluses/deficits on trading undertakings,Internal Business Units and Support Services,Supplies and Services,Communication and computing,D51,Printing and stationery,11/03/2013,179751,94.83,Revenue income and expenditure,Redditch Borough Council,1533,5,VN,201212,LS00,P1,
B,Bromsgrove District Council,Surpluses/deficits on trading undertakings,Internal Business Units and Support Services,Supplies and Services,Services,D43,Training fees,11/03/2013,179751,104.00,Revenue income and expenditure,Redditch Borough Council,1533,5,VN,201212,LS00,P1,
B,Bromsgrove District Council,Surpluses/deficits on trading undertakings,Internal Business Units and Support Services,Supplies and Services,Communication and computing,D51,Printing and stationery,28/03/2013,179752,-435.37,Revenue income and expenditure,Ricoh UK Ltd,6528,1,CN,201212,PS01,P1,
B,Bromsgrove District Council,Surpluses/deficits on trading undertakings,Internal Business Units and Support Services,Supplies and Services,Services,D43,Training fees,07/03/2013,179753,"7,292.91",Revenue income and expenditure,Redditch Borough Council,1533,5,VN,201212,PS02,P1,
B,Bromsgrove District Council,Surpluses/deficits on trading undertakings,Internal Business Units and Support Services,Third Party Payments,Other Local authorities,E31,Other local authorities,07/03/2013,179753,"1,250.00",Revenue income and expenditure,Redditch Borough Council,1533,5,VN,201212,FS00,P1,
B,Bromsgrove District Council,Surpluses/deficits on trading undertakings,Depot Services,Supplies and Services,"Equipment, furniture and materials",D06,Materials - purchased,05/03/2013,179756,100.00,Revenue income and expenditure,Vision Techniques (U.K.)  Ltd,3412,1,VO,201212,DW11,P1,
B,Bromsgrove District Council,General Fund Housing Services,Travellers Sites,Supplies and Services,Services,D48,Contractors' fees/charges/SLA's,05/03/2013,179757,0.00,Revenue income and expenditure,WD Ornamental Ironwork,10033,2,VO,201212,HG02,P1,
B,Bromsgrove District Council,General Fund Housing Services,Travellers Sites,Premise Related Expenditure,"Repairs, alterations and maint. of buildings",B04,Repair/maint'ce (CIS tax deductible),05/03/2013,179757,390.00,Revenue income and expenditure,WD Ornamental Ironwork,10033,2,VO,201212,HG02,P1,
B,Bromsgrove District Council,Surpluses/deficits on trading undertakings,Internal Business Units and Support Services,Supplies and Services,Services,D47,Consultants' fees,05/03/2013,179758,245.52,Revenue income and expenditure,Giant Professional Ltd,10137,1,VO,201212,IT12,P1,
B,Bromsgrove District Council,Surpluses/deficits on trading undertakings,Internal Business Units and Support Services,Third Party Payments,Other Local authorities,E31,Other local authorities,07/03/2013,179762,"44,825.00",Revenue income and expenditure,Worcester City Council,1138,5,VN,201212,AU00,P4,
B,Bromsgrove District Council,Surpluses/deficits on trading undertakings,Depot Services,Transport Related Expenditure,Contract Hire and operating leases,C31,Contract hire of vehicles,12/03/2013,179764,950.00,Revenue income and expenditure,Priority Hire Ltd,9764,1,VO,201212,DW11,P1,
B,Bromsgrove District Council,Surpluses/deficits on trading undertakings,Internal Business Units and Support Services,Supplies and Services,Services,D47,Consultants' fees,08/03/2013,179765,"4,275.00",Revenue income and expenditure,Aristi Limited,8785,1,VO,201212,IT12,P1,
B,Bromsgrove District Council,Surpluses/deficits on trading undertakings,Internal Business Units and Support Services,Supplies and Services,Services,D47,Consultants' fees,08/03/2013,179766,"4,275.00",Revenue income and expenditure,Aristi Limited,8785,1,VO,201212,IT10,P1,
B,Bromsgrove District Council,Surpluses/deficits on trading undertakings,Depot Services,Transport Related Expenditure,Direct Transport Costs,C01,Vehicle repairs/maint'ce,11/03/2013,179767,495.59,Revenue income and expenditure,Dennis Eagle Ltd,1191,1,VO,201212,DW11,P1,
B,Bromsgrove District Council,,,Supplies and Services,Services,D49,Miscellaneous services,05/03/2013,179768,"11,000.00",Revenue income and expenditure,EPIC,7485,1,VO,201212,CM23,P1,
B,Bromsgrove District Council,,,Supplies and Services,Services,D49,Miscellaneous services,05/03/2013,179769,"3,720.00",Revenue income and expenditure,EPIC,7485,1,VO,201212,CM23,P1,
B,Bromsgrove District Council,Surpluses/deficits on trading undertakings,Depot Services,Supplies and Services,"Equipment, furniture and materials",D06,Materials - purchased,07/03/2013,179772,10.00,Revenue income and expenditure,Focal Image,1252,1,VP,201212,DP02,P1,
B,Bromsgrove District Council,Highways and transport services,Off-street Parking,Supplies and Services,"Equipment, furniture and materials",D06,Materials - purchased,06/03/2013,179773,313.50,Revenue income and expenditure,Focal Image,1252,1,VO,201212,CP00,P1,
B,Bromsgrove District Council,,,Supplies and Services,Services,D49,Miscellaneous services,05/03/2013,179774,"25,000.00",Revenue income and expenditure,EPIC,7485,1,VO,201212,CM23,P1,
B,Bromsgrove District Council,Surpluses/deficits on trading undertakings,Internal Business Units and Support Services,Supplies and Services,Communication and computing,D57,Computer - software,07/03/2013,179788,"33,000.00",Revenue income and expenditure,IDOX Software Ltd,6852,1,VN,201212,IT08,P1,
B,Bromsgrove District Council,Surpluses/deficits on trading undertakings,Internal Business Units and Support Services,Supplies and Services,Communication and computing,D56,Computer - hardware,14/03/2013,179789,252.80,Revenue income and expenditure,Insight Direct (UK) Ltd,1350,1,VP,201212,IT12,P1,
B,Bromsgrove District Council,Planning and Development Services,Advice,Supplies and Services,Services,D47,Consultants' fees,12/03/2013,179790,289.05,Revenue income and expenditure,Joe Holyoak,6045,1,VO,201212,DC00,P4,
B,Bromsgrove District Council,Surpluses/deficits on trading undertakings,Depot Services,Supplies and Services,"Clothes, uniform and laundry",D31,Clothing and uniforms,07/03/2013,179791,288.99,Revenue income and expenditure,Tudor Environmental,10241,1,VP,201212,DW32,P1,
B,Bromsgrove District Council,Not BVACOP Service,Not BVACOP Sub Division,Current Assets,Stocks,300,Stock Movement,07/03/2013,179792,50.16,,Imperial Commercials Ltd.,1403,1,VP,201212,XX611,P1,
B,Bromsgrove District Council,Not BVACOP Service,Not BVACOP Sub Division,Current Assets,Stocks,300,Stock Movement,11/03/2013,179793,42.40,,Imperial Commercials Ltd.,1403,1,VO,201212,XX611,P1,
B,Bromsgrove District Council,Surpluses/deficits on trading undertakings,Depot Services,Transport Related Expenditure,Direct Transport Costs,C01,Vehicle repairs/maint'ce,11/03/2013,179793,13.01,Revenue income and expenditure,Imperial Commercials Ltd.,1403,1,VO,201212,DW11,P1,
B,Bromsgrove District Council,Surpluses/deficits on trading undertakings,Depot Services,Transport Related Expenditure,Direct Transport Costs,C01,Vehicle repairs/maint'ce,07/03/2013,179794,118.55,Revenue income and expenditure,Imperial Commercials Ltd.,1403,1,VP,201212,DW21,P1,
B,Bromsgrove District Council,Surpluses/deficits on trading undertakings,Depot Services,Transport Related Expenditure,Direct Transport Costs,C01,Vehicle repairs/maint'ce,07/03/2013,179795,122.75,Revenue income and expenditure,Imperial Commercials Ltd.,1403,1,VP,201212,DW21,P1,
B,Bromsgrove District Council,Environmental Services,,Supplies and Services,Services,D47,Consultants' fees,12/03/2013,179797,"1,484.00",Revenue income and expenditure,Weavers of Wellbeing Ltd,10293,1,VO,201212,YA09,P4,
B,Bromsgrove District Council,Environmental Services,Cemeteries,Supplies and Services,Services,D48,Contractors' fees/charges/SLA's,07/03/2013,179800,216.00,Revenue income and expenditure,Peter Price,7730,1,VP,201212,CE01,P4,
B,Bromsgrove District Council,Not BVACOP Service,Not BVACOP Sub Division,Capital Expenditure,"Plant, vehicles and equipment",X23,Software,27/03/2013,179801,"1,425.00",Capital income and expenditure,IDOX Software Ltd,6852,1,VO,201212,CAPR,P1,
B,Bromsgrove District Council,General Fund Housing Services,,Supplies and Services,Grants and subscriptions,D71,Grants,07/03/2013,179804,"2,125.00",Revenue income and expenditure,NewStarts,6987,1,VP,201212,HG37,P5,
B,Bromsgrove District Council,,,Supplies and Services,Services,D48,Contractors' fees/charges/SLA's,07/03/2013,179806,"4,750.00",Revenue income and expenditure,Act on Energy,8185,1,VP,201212,HM18,P1,
B,Bromsgrove District Council,Central Services to the Public,Registration of Electors,Supplies and Services,Communication and computing,D53,Postage/packaging,14/03/2013,179807,763.03,Revenue income and expenditure,Royal Mail Group Plc,1558,1,VN,201212,EL00,P1,
B,Bromsgrove District Council,Surpluses/deficits on trading undertakings,Depot Services,Transport Related Expenditure,Direct Transport Costs,C06,Tyres,07/03/2013,179809,76.53,Revenue income and expenditure,A T S Euromaster Ltd.,8244,1,VP,201212,DW21,P1,
B,Bromsgrove District Council,Surpluses/deficits on trading undertakings,Depot Services,Transport Related Expenditure,Direct Transport Costs,C06,Tyres,07/03/2013,179809,651.70,Revenue income and expenditure,A T S Euromaster Ltd.,8244,1,VP,201212,DW11,P1,
B,Bromsgrove District Council,Surpluses/deficits on trading undertakings,Depot Services,Transport Related Expenditure,Direct Transport Costs,C06,Tyres,07/03/2013,179809,32.86,Revenue income and expenditure,A T S Euromaster Ltd.,8244,1,VP,201212,DW14,P1,
B,Bromsgrove District Council,Surpluses/deficits on trading undertakings,Depot Services,Premise Related Expenditure,"Repairs, alterations and maint. of buildings",B02,External repair/maint. (reg'd for gross pay't),07/03/2013,179817,180.00,Revenue income and expenditure,Howard Yarnold Ltd,9242,2,VP,201212,DP02,P1,
B,Bromsgrove District Council,Not BVACOP Service,Not BVACOP Sub Division,Current Assets,Stocks,300,Stock Movement,07/03/2013,179818,34.50,,Foxall Industrial Supplies Ltd,1857,1,VO,201212,XX611,P1,
B,Bromsgrove District Council,Surpluses/deficits on trading undertakings,Depot Services,Transport Related Expenditure,Direct Transport Costs,C01,Vehicle repairs/maint'ce,07/03/2013,179819,319.65,Revenue income and expenditure,Fast Fit Nationwide Ltd,1236,1,VO,201212,DW11,P1,
B,Bromsgrove District Council,Surpluses/deficits on trading undertakings,Depot Services,Transport Related Expenditure,Direct Transport Costs,C01,Vehicle repairs/maint'ce,11/03/2013,179821,42.29,Revenue income and expenditure,Dennis Eagle Ltd,1191,1,VO,201212,DW11,P1,
B,Bromsgrove District Council,Surpluses/deficits on trading undertakings,Depot Services,Transport Related Expenditure,Direct Transport Costs,C01,Vehicle repairs/maint'ce,11/03/2013,179821,188.79,Revenue income and expenditure,Dennis Eagle Ltd,1191,1,VO,201212,DW14,P1,
B,Bromsgrove District Council,,,Employees,Direct Employee Expenses,A10,Agency workers,07/03/2013,179822,450.00,Revenue income and expenditure,Morgan Hunt UK Ltd,9519,1,VO,201212,RB10,P1,
B,Bromsgrove District Council,,,Employees,Direct Employee Expenses,A10,Agency workers,07/03/2013,179823,650.00,Revenue income and expenditure,Morgan Hunt UK Ltd,9519,1,VO,201212,RB10,P1,
B,Bromsgrove District Council,Cultural and Related Services,Community parks and open spaces,Third Party Payments,Other Local authorities,E31,Other local authorities,07/03/2013,179824,"23,832.02",Revenue income and expenditure,Redditch Borough Council,1533,5,VN,201212,RG00,P1,
B,Bromsgrove District Council,Cultural and Related Services,Community parks and open spaces,Third Party Payments,Other Local authorities,E31,Other local authorities,07/03/2013,179824,"13,147.75",Revenue income and expenditure,Redditch Borough Council,1533,5,VN,201212,RG01,P1,
B,Bromsgrove District Council,Cultural and Related Services,Sports Development and community recreation,Third Party Payments,Other Local authorities,E31,Other local authorities,07/03/2013,179824,"45,781.19",Revenue income and expenditure,Redditch Borough Council,1533,5,VN,201212,SD00,P1,
B,Bromsgrove District Council,Cultural and Related Services,Community parks and open spaces,Third Party Payments,Other Local authorities,E31,Other local authorities,07/03/2013,179824,"18,165.78",Revenue income and expenditure,Redditch Borough Council,1533,5,VN,201212,SP00,P1,
B,Bromsgrove District Council,Cultural and Related Services,Tree Planting Services,Third Party Payments,Other Local authorities,E31,Other local authorities,07/03/2013,179824,"4,199.40",Revenue income and expenditure,Redditch Borough Council,1533,5,VN,201212,TP01,P1,
B,Bromsgrove District Council,Cultural and Related Services,,Third Party Payments,Other Local authorities,E31,Other local authorities,12/03/2013,179825,993.00,Revenue income and expenditure,Redditch Borough Council,1533,5,VN,201212,SA01,P1,
B,Bromsgrove District Council,Cultural and Related Services,Sports Development and community recreation,Third Party Payments,Other Local authorities,E31,Other local authorities,12/03/2013,179825,894.42,Revenue income and expenditure,Redditch Borough Council,1533,5,VN,201212,SD05,P1,
B,Bromsgrove District Council,Cultural and Related Services,Sports Development and community recreation,Third Party Payments,Other Local authorities,E31,Other local authorities,12/03/2013,179825,"1,000.00",Revenue income and expenditure,Redditch Borough Council,1533,5,VN,201212,SD17,P1,
B,Bromsgrove District Council,Cultural and Related Services,Sports Development and community recreation,Third Party Payments,Other Local authorities,E31,Other local authorities,12/03/2013,179825,"1,650.00",Revenue income and expenditure,Redditch Borough Council,1533,5,VN,201212,SD31,P1,
B,Bromsgrove District Council,Cultural and Related Services,,Third Party Payments,Other Local authorities,E31,Other local authorities,12/03/2013,179825,827.89,Revenue income and expenditure,Redditch Borough Council,1533,5,VN,201212,SA21,P1,
B,Bromsgrove District Council,Cultural and Related Services,Sports Development and community recreation,Third Party Payments,Other Local authorities,E31,Other local authorities,15/03/2013,179826,"27,348.87",Revenue income and expenditure,Redditch Borough Council,1533,5,VN,201212,SD22,P1,
B,Bromsgrove District Council,Cultural and Related Services,Arts Development and Support,Third Party Payments,Other Local authorities,E31,Other local authorities,15/03/2013,179826,"7,730.00",Revenue income and expenditure,Redditch Borough Council,1533,5,VN,201212,AR03,P1,
B,Bromsgrove District Council,Cultural and Related Services,Arts Development and Support,Third Party Payments,Other Local authorities,E31,Other local authorities,15/03/2013,179826,78.79,Revenue income and expenditure,Redditch Borough Council,1533,5,VN,201212,AR00,P1,
B,Bromsgrove District Council,Cultural and Related Services,Arts Development and Support,Third Party Payments,Other Local authorities,E31,Other local authorities,15/03/2013,179826,"2,000.00",Revenue income and expenditure,Redditch Borough Council,1533,5,VN,201212,AR08,P1,
B,Bromsgrove District Council,Cultural and Related Services,Arts Development and Support,Third Party Payments,Other Local authorities,E31,Other local authorities,15/03/2013,179826,"31,015.06",Revenue income and expenditure,Redditch Borough Council,1533,5,VN,201212,AR01,P1,
B,Bromsgrove District Council,Cultural and Related Services,Museums and Gallaries,Third Party Payments,Other Local authorities,E31,Other local authorities,15/03/2013,179826,79.00,Revenue income and expenditure,Redditch Borough Council,1533,5,VN,201212,MT91,P1,
B,Bromsgrove District Council,Cultural and Related Services,Outdoor sports and recreation facilities,Third Party Payments,Other Local authorities,E31,Other local authorities,21/03/2013,179827,"21,868.45",Revenue income and expenditure,Redditch Borough Council,1533,5,VN,201212,PA01,P1,
B,Bromsgrove District Council,Cultural and Related Services,Allotments,Third Party Payments,Other Local authorities,E31,Other local authorities,21/03/2013,179827,"2,748.93",Revenue income and expenditure,Redditch Borough Council,1533,5,VN,201212,AL01,P1,
B,Bromsgrove District Council,Cultural and Related Services,Arts Development and Support,Third Party Payments,Other Local authorities,E31,Other local authorities,21/03/2013,179827,"33,897.79",Revenue income and expenditure,Redditch Borough Council,1533,5,VN,201212,AR00,P1,
B,Bromsgrove District Council,Cultural and Related Services,Community parks and open spaces,Third Party Payments,Other Local authorities,E31,Other local authorities,21/03/2013,179827,401.30,Revenue income and expenditure,Redditch Borough Council,1533,5,VN,201212,SP00,P1,
B,Bromsgrove District Council,Cultural and Related Services,Community parks and open spaces,Third Party Payments,Other Local authorities,E31,Other local authorities,21/03/2013,179827,"15,120.91",Revenue income and expenditure,Redditch Borough Council,1533,5,VN,201212,RG00,P1,
B,Bromsgrove District Council,Highways and transport services,Street Lighting,Third Party Payments,Other Local authorities,E31,Other local authorities,15/03/2013,179828,"10,317.95",Revenue income and expenditure,Redditch Borough Council,1533,5,VN,201212,HW08,P1,
B,Bromsgrove District Council,Cultural and Related Services,Community Centres,Third Party Payments,Other Local authorities,E31,Other local authorities,15/03/2013,179828,"16,641.95",Revenue income and expenditure,Redditch Borough Council,1533,5,VN,201212,SS01,P1,
B,Bromsgrove District Council,Cultural and Related Services,Arts Development and Support,Third Party Payments,Other Local authorities,E31,Other local authorities,15/03/2013,179828,"1,195.00",Revenue income and expenditure,Redditch Borough Council,1533,5,VN,201212,AR07,P1,
B,Bromsgrove District Council,Surpluses/deficits on trading undertakings,Internal Business Units and Support Services,Third Party Payments,Other Local authorities,E31,Other local authorities,15/03/2013,179828,"56,412.64",Revenue income and expenditure,Redditch Borough Council,1533,5,VN,201212,ES20,P1,
B,Bromsgrove District Council,Cultural and Related Services,Arts Development and Support,Third Party Payments,Other Local authorities,E31,Other local authorities,15/03/2013,179828,"22,509.21",Revenue income and expenditure,Redditch Borough Council,1533,5,VN,201212,AR00,P1,
B,Bromsgrove District Council,Surpluses/deficits on trading undertakings,Internal Business Units and Support Services,Third Party Payments,Other Local authorities,E31,Other local authorities,15/03/2013,179828,"6,502.46",Revenue income and expenditure,Redditch Borough Council,1533,5,VN,201212,LA00,P1,
B,Bromsgrove District Council,Cultural and Related Services,Sports Development and community recreation,Third Party Payments,Other Local authorities,E31,Other local authorities,12/03/2013,179829,300.00,Revenue income and expenditure,Redditch Borough Council,1533,5,VN,201212,SD32,P1,
B,Bromsgrove District Council,Cultural and Related Services,Sports Development and community recreation,Third Party Payments,Other Local authorities,E31,Other local authorities,12/03/2013,179829,"42,028.72",Revenue income and expenditure,Redditch Borough Council,1533,5,VN,201212,SD00,P1,
B,Bromsgrove District Council,Cultural and Related Services,Sports Development and community recreation,Third Party Payments,Other Local authorities,E31,Other local authorities,12/03/2013,179829,"1,254.16",Revenue income and expenditure,Redditch Borough Council,1533,5,VN,201212,SD36,P1,
B,Bromsgrove District Council,Cultural and Related Services,Sports Development and community recreation,Third Party Payments,Other Local authorities,E31,Other local authorities,12/03/2013,179829,"2,166.00",Revenue income and expenditure,Redditch Borough Council,1533,5,VN,201212,SD37,P1,
B,Bromsgrove District Council,Surpluses/deficits on trading undertakings,Internal Business Units and Support Services,Supplies and Services,Communication and computing,D52,Books and publications,15/03/2013,179832,221.00,Revenue income and expenditure,Sweet & Maxwell Ltd,1626,1,VN,201212,LS00,P4,
B,Bromsgrove District Council,Surpluses/deficits on trading undertakings,Internal Business Units and Support Services,Supplies and Services,Communication and computing,D53,Postage/packaging,21/03/2013,179833,370.00,Revenue income and expenditure,Royal Mail Group Plc,1558,1,VN,201212,FS00,P1,
B,Bromsgrove District Council,Not BVACOP Service,Not BVACOP Sub Division,Current Assets,Stocks,300,Stock Movement,11/03/2013,179837,77.25,,K P Ince Specialist Car Colours,8147,1,VO,201212,XX611,P1,
B,Bromsgrove District Council,,,Premise Related Expenditure,Cleaning and domestic supplies,B80,Contract cleaning,15/03/2013,179838,417.08,Revenue income and expenditure,We Clean Ltd,2966,1,VO,201212,CC01,P1,
B,Bromsgrove District Council,Surpluses/deficits on trading undertakings,Internal Business Units and Support Services,Supplies and Services,"Equipment, furniture and materials",D06,Materials - purchased,18/03/2013,179840,335.00,Revenue income and expenditure,A & P Chambers Ltd,10310,1,VO,201212,ES20,P1,
B,Bromsgrove District Council,Surpluses/deficits on trading undertakings,Depot Services,Supplies and Services,"Equipment, furniture and materials",D06,Materials - purchased,14/03/2013,179842,37.88,Revenue income and expenditure,Morris Mica Hardware,1448,1,VP,201212,DW21,P1,
B,Bromsgrove District Council,Surpluses/deficits on trading undertakings,Depot Services,Supplies and Services,"Equipment, furniture and materials",D06,Materials - purchased,14/03/2013,179842,49.99,Revenue income and expenditure,Morris Mica Hardware,1448,1,VP,201212,DP02,P1,
B,Bromsgrove District Council,Surpluses/deficits on trading undertakings,Internal Business Units and Support Services,Transport Related Expenditure,Contract Hire and operating leases,C32,Courier and transport services,11/03/2013,179843,120.00,Revenue income and expenditure,Bromsgrove Bus & Coach Company,5238,1,VO,201212,LS05,P4,
B,Bromsgrove District Council,Not BVACOP Service,Not BVACOP Sub Division,Current Assets,Stocks,300,Stock Movement,11/03/2013,179844,235.11,,Dennis Eagle Ltd,1191,1,VO,201212,XX611,P1,
B,Bromsgrove District Council,Surpluses/deficits on trading undertakings,Depot Services,Supplies and Services,"Equipment, furniture and materials",D06,Materials - purchased,20/03/2013,179846,69.93,Revenue income and expenditure,Air Liquide Limited,1407,1,VO,201212,DT41,P1,
B,Bromsgrove District Council,Environmental Services,Cemeteries,Transport Related Expenditure,Direct Transport Costs,C04,Petrol,14/03/2013,179847,62.89,Revenue income and expenditure,Phoenix Service Stations Ltd,6831,1,VP,201212,CE01,P1,
B,Bromsgrove District Council,,,Transport Related Expenditure,Contract Hire and operating leases,C32,Courier and transport services,18/03/2013,179848,200.00,Revenue income and expenditure,M & T Mini Coaches,1874,1,VO,201212,CD61,P4,
B,Bromsgrove District Council,Surpluses/deficits on trading undertakings,Depot Services,Supplies and Services,"Equipment, furniture and materials",D01,Equipment - purchase,11/03/2013,179849,48.64,Revenue income and expenditure,TOY Trading Tool Factor Ltd,1655,1,VO,201212,DS62,P1,
B,Bromsgrove District Council,Surpluses/deficits on trading undertakings,Depot Services,Supplies and Services,Communication and computing,D53,Postage/packaging,11/03/2013,179850,7.00,Revenue income and expenditure,Mis Fuel Monitoring Ltd,1963,1,VO,201212,DP02,P1,
B,Bromsgrove District Council,Surpluses/deficits on trading undertakings,Depot Services,Supplies and Services,"Equipment, furniture and materials",D06,Materials - purchased,11/03/2013,179850,104.50,Revenue income and expenditure,Mis Fuel Monitoring Ltd,1963,1,VO,201212,DP02,P1,
B,Bromsgrove District Council,Central Services to the Public,Registration of Electors,Supplies and Services,Communication and computing,D51,Printing and stationery,19/03/2013,179855,168.29,Revenue income and expenditure,Print.uk.com,2722,1,VO,201212,EL00,P1,
B,Bromsgrove District Council,Surpluses/deficits on trading undertakings,Depot Services,Supplies and Services,Communication and computing,D51,Printing and stationery,13/03/2013,179858,"1,228.00",Revenue income and expenditure,Vernon Print & Design,2954,1,VO,201212,DW11,P1,
B,Bromsgrove District Council,Surpluses/deficits on trading undertakings,Depot Services,Supplies and Services,"Equipment, furniture and materials",D02,Equipment - maintenance,13/03/2013,179859,44.94,Revenue income and expenditure,System Chassijet Ltd,2425,1,VO,201212,DP02,P1,
B,Bromsgrove District Council,Not BVACOP Service,Not BVACOP Sub Division,Current Assets,Stocks,300,Stock Movement,13/03/2013,179861,49.00,,Spaldings (UK) Ltd,1600,1,VO,201212,XX611,P1,
B,Bromsgrove District Council,Surpluses/deficits on trading undertakings,Internal Business Units and Support Services,Supplies and Services,Communication and computing,D56,Computer - hardware,14/03/2013,179862,302.00,Revenue income and expenditure,Insight Direct (UK) Ltd,1350,1,VP,201212,IT12,P1,
B,Bromsgrove District Council,Not BVACOP Service,Not BVACOP Sub Division,Current Assets,Stocks,300,Stock Movement,14/03/2013,179863,331.18,,Western Harvesters Ltd,7544,1,VP,201212,XX611,P1,
B,Bromsgrove District Council,Not BVACOP Service,Not BVACOP Sub Division,Current Assets,Stocks,300,Stock Movement,14/03/2013,179864,85.37,,Western Harvesters Ltd,7544,1,VP,201212,XX611,P1,
B,Bromsgrove District Council,Surpluses/deficits on trading undertakings,Internal Business Units and Support Services,Supplies and Services,Communication and computing,D51,Printing and stationery,14/03/2013,179865,6.08,Revenue income and expenditure,Minilabel Ltd,10268,1,VP,201212,LS00,P1,
B,Bromsgrove District Council,Surpluses/deficits on trading undertakings,Depot Services,Employees,Indirect Employee Expenses,A23,Training for professional qualifications,13/03/2013,179866,350.00,Revenue income and expenditure,Hydro Project Engineering Ltd,10291,1,VO,201212,DW21,P1,
B,Bromsgrove District Council,Surpluses/deficits on trading undertakings,Depot Services,Employees,Indirect Employee Expenses,A23,Training for professional qualifications,13/03/2013,179866,175.00,Revenue income and expenditure,Hydro Project Engineering Ltd,10291,1,VO,201212,DS62,P1,
B,Bromsgrove District Council,Surpluses/deficits on trading undertakings,Internal Business Units and Support Services,Supplies and Services,Catering,D23,Catering (incl.food purchases),13/03/2013,179870,350.00,Revenue income and expenditure,S H S Catering,1799,1,VO,201212,LS05,P1,
B,Bromsgrove District Council,Surpluses/deficits on trading undertakings,Internal Business Units and Support Services,Premise Related Expenditure,Fixtures and Fittings,B63,Internal fixtures/fittings - maint'ce,14/03/2013,179871,0.00,Revenue income and expenditure,PJA Electrics  Ltd,2892,2,VP,201212,ES20,P1,
B,Bromsgrove District Council,Surpluses/deficits on trading undertakings,Internal Business Units and Support Services,Premise Related Expenditure,"Repairs, alterations and maint. of buildings",B04,Repair/maint'ce (CIS tax deductible),14/03/2013,179871,454.76,Revenue income and expenditure,PJA Electrics  Ltd,2892,2,VP,201212,ES20,P1,
B,Bromsgrove District Council,Planning and Development Services,Other Building control work,Supplies and Services,Communication and computing,D51,Printing and stationery,13/03/2013,179872,137.13,Revenue income and expenditure,Stanford Marsh Ltd,1607,1,VO,201212,BC00,P1,
B,Bromsgrove District Council,Surpluses/deficits on trading undertakings,Depot Services,Transport Related Expenditure,Direct Transport Costs,C01,Vehicle repairs/maint'ce,13/03/2013,179882,190.00,Revenue income and expenditure,J K Autos,1040,1,VO,201212,DW21,P1,
B,Bromsgrove District Council,Surpluses/deficits on trading undertakings,Depot Services,Premise Related Expenditure,"Repairs, alterations and maint. of buildings",B02,External repair/maint. (reg'd for gross pay't),13/03/2013,179883,424.00,Revenue income and expenditure,Locke & Eastwood,1409,2,VO,201212,DP02,P1,
B,Bromsgrove District Council,Planning and Development Services,Other Building control work,Supplies and Services,Communication and computing,D51,Printing and stationery,21/03/2013,179884,75.85,Revenue income and expenditure,Stanford Marsh Ltd,1607,1,VO,201212,BC00,P1,
B,Bromsgrove District Council,Surpluses/deficits on trading undertakings,Internal Business Units and Support Services,Supplies and Services,Communication and computing,D57,Computer - software,21/03/2013,179885,658.24,Revenue income and expenditure,Oracle Corporation UK Ltd.,9231,3,VP,201212,IT12,P1,
B,Bromsgrove District Council,Not BVACOP Service,Not BVACOP Sub Division,Current Assets,Stocks,300,Stock Movement,14/03/2013,179886,47.74,,PCS Jangro,7294,1,VP,201212,XX611,P1,
B,Bromsgrove District Council,Planning and Development Services,Advice,Supplies and Services,Miscellaneous expenses,D88,Miscellaneous expenses,14/03/2013,179887,220.00,Revenue income and expenditure,TMP (UK) Ltd,1646,1,VP,201212,DC00,P1,
B,Bromsgrove District Council,Planning and Development Services,Advice,Supplies and Services,Miscellaneous expenses,D88,Miscellaneous expenses,14/03/2013,179888,262.41,Revenue income and expenditure,TMP (UK) Ltd,1646,1,VP,201212,DC00,P1,
B,Bromsgrove District Council,Planning and Development Services,Advice,Supplies and Services,Miscellaneous expenses,D88,Miscellaneous expenses,14/03/2013,179889,212.54,Revenue income and expenditure,TMP (UK) Ltd,1646,1,VP,201212,DC00,P1,
B,Bromsgrove District Council,Planning and Development Services,Advice,Supplies and Services,Miscellaneous expenses,D88,Miscellaneous expenses,14/03/2013,179890,165.40,Revenue income and expenditure,TMP (UK) Ltd,1646,1,VP,201212,DC00,P1,
B,Bromsgrove District Council,Planning and Development Services,Advice,Supplies and Services,Miscellaneous expenses,D88,Miscellaneous expenses,14/03/2013,179891,329.20,Revenue income and expenditure,TMP (UK) Ltd,1646,1,VP,201212,DC00,P1,
B,Bromsgrove District Council,Surpluses/deficits on trading undertakings,Internal Business Units and Support Services,Premise Related Expenditure,Fixtures and Fittings,B63,Internal fixtures/fittings - maint'ce,14/03/2013,179897,144.00,Revenue income and expenditure,Fire Safe Services Ltd,10056,1,VP,201212,ES20,P1,
B,Bromsgrove District Council,Surpluses/deficits on trading undertakings,Internal Business Units and Support Services,Premise Related Expenditure,Fixtures and Fittings,B63,Internal fixtures/fittings - maint'ce,14/03/2013,179898,241.48,Revenue income and expenditure,Fire Safe Services Ltd,10056,1,VP,201212,ES20,P1,
B,Bromsgrove District Council,Environmental Services,Recycling,Supplies and Services,Services,D48,Contractors' fees/charges/SLA's,20/03/2013,179900,128.45,Revenue income and expenditure,Smurfit Kappa Recycling,1375,1,VO,201212,EH06,P1,
B,Bromsgrove District Council,,,Employees,Direct Employee Expenses,A10,Agency workers,19/03/2013,179902,850.00,Revenue income and expenditure,Morgan Hunt UK Ltd,9519,1,VO,201212,RB10,P1,
B,Bromsgrove District Council,Surpluses/deficits on trading undertakings,Depot Services,Employees,Direct Employee Expenses,A10,Agency workers,21/03/2013,179904,"2,439.76",Revenue income and expenditure,Matrix SCM Ltd,9043,1,VN,201212,DW11,P1,
B,Bromsgrove District Council,Environmental Services,,Employees,Direct Employee Expenses,A10,Agency workers,21/03/2013,179904,683.58,Revenue income and expenditure,Matrix SCM Ltd,9043,1,VN,201212,YA02,P1,
B,Bromsgrove District Council,Surpluses/deficits on trading undertakings,Depot Services,Employees,Direct Employee Expenses,A10,Agency workers,21/03/2013,179904,"1,083.03",Revenue income and expenditure,Matrix SCM Ltd,9043,1,VN,201212,DW21,P1,
B,Bromsgrove District Council,Surpluses/deficits on trading undertakings,Depot Services,Employees,Direct Employee Expenses,A10,Agency workers,21/03/2013,179904,654.75,Revenue income and expenditure,Matrix SCM Ltd,9043,1,VN,201212,DT41,P1,
B,Bromsgrove District Council,Surpluses/deficits on trading undertakings,Internal Business Units and Support Services,Supplies and Services,Communication and computing,D57,Computer - software,21/03/2013,179905,"1,890.00",Revenue income and expenditure,NextiraOne Uk Ltd,4867,1,VP,201212,IT12,P1,
B,Bromsgrove District Council,Surpluses/deficits on trading undertakings,Internal Business Units and Support Services,Supplies and Services,Services,D47,Consultants' fees,15/03/2013,179907,"2,612.50",Revenue income and expenditure,Miss Sarah Clover,5893,1,VO,201212,LS00,P1,
B,Bromsgrove District Council,,,Premise Related Expenditure,Cleaning and domestic supplies,B80,Contract cleaning,20/03/2013,179909,45.00,Revenue income and expenditure,Reflections,1537,1,VO,201212,CC01,P4,
B,Bromsgrove District Council,Cultural and Related Services,Community Centres,Premise Related Expenditure,"Repairs, alterations and maint. of buildings",B04,Repair/maint'ce (CIS tax deductible),21/03/2013,179910,"1,187.30",Revenue income and expenditure,PJA Electrics  Ltd,2892,2,VP,201212,SS01,P1,
B,Bromsgrove District Council,Cultural and Related Services,Community Centres,Premise Related Expenditure,Fixtures and Fittings,B63,Internal fixtures/fittings - maint'ce,21/03/2013,179910,0.00,Revenue income and expenditure,PJA Electrics  Ltd,2892,2,VP,201212,SS01,P1,
B,Bromsgrove District Council,Surpluses/deficits on trading undertakings,Depot Services,Supplies and Services,Miscellaneous expenses,D88,Miscellaneous expenses,13/03/2013,179911,34.38,Revenue income and expenditure,Portway Motor Services Ltd,1902,1,VO,201212,DW23,P1,
B,Bromsgrove District Council,Surpluses/deficits on trading undertakings,Internal Business Units and Support Services,Supplies and Services,Communication and computing,D59,Telephones,21/03/2013,179912,"2,466.75",Revenue income and expenditure,Vodafone Ltd,9580,1,VP,201212,IT10,P1,
B,Bromsgrove District Council,,,Supplies and Services,Communication and computing,D50,Debt Collection Fees,15/03/2013,179914,125.00,Revenue income and expenditure,Harrison Clark LLP,5548,1,VN,201212,RB01,P1,
B,Bromsgrove District Council,,,Supplies and Services,Communication and computing,D50,Debt Collection Fees,15/03/2013,179914,43.00,Revenue income and expenditure,Harrison Clark LLP,5548,1,VN,201212,RB01,P5,
B,Bromsgrove District Council,,,Supplies and Services,Communication and computing,D50,Debt Collection Fees,15/03/2013,179916,325.00,Revenue income and expenditure,Harrison Clark LLP,5548,1,VN,201212,RB01,P1,
B,Bromsgrove District Council,Not BVACOP Service,Not BVACOP Sub Division,Current Assets,Stocks,300,Stock Movement,25/03/2013,179918,620.00,,WasteParts UK Ltd,6508,1,VO,201212,XX611,P1,
B,Bromsgrove District Council,Surpluses/deficits on trading undertakings,Depot Services,Supplies and Services,Miscellaneous expenses,D88,Miscellaneous expenses,15/03/2013,179920,23.40,Revenue income and expenditure,Mercia Waste Management Ltd,1433,1,VO,201212,DW32,P1,
B,Bromsgrove District Council,Not BVACOP Service,Not BVACOP Sub Division,Capital Expenditure,Operational Land and Buildings,X06,Professional fees,21/03/2013,179921,"1,108.00",Capital income and expenditure,Troy Kidsley,3348,1,VO,201212,CAPS,P1,
B,Bromsgrove District Council,Corporate and Democratic Core,Corporate Management,Supplies and Services,Services,D42,Seminar and course fees,18/03/2013,179923,85.00,Revenue income and expenditure,Association of Democratic Services Officers,8164,1,VO,201212,CS00,P1,
B,Bromsgrove District Council,Planning and Development Services,Advice,Supplies and Services,Communication and computing,D51,Printing and stationery,13/03/2013,179925,181.25,Revenue income and expenditure,Covergold,2383,1,VO,201212,DC00,P1,
B,Bromsgrove District Council,Surpluses/deficits on trading undertakings,Depot Services,Transport Related Expenditure,Direct Transport Costs,C01,Vehicle repairs/maint'ce,13/03/2013,179926,95.00,Revenue income and expenditure,Municipal Vehicle Inspection Services Ltd,3646,1,VO,201212,DW21,P1,
B,Bromsgrove District Council,Surpluses/deficits on trading undertakings,Depot Services,Transport Related Expenditure,Direct Transport Costs,C01,Vehicle repairs/maint'ce,13/03/2013,179926,95.00,Revenue income and expenditure,Municipal Vehicle Inspection Services Ltd,3646,1,VO,201212,DT41,P1,
B,Bromsgrove District Council,,,Transport Related Expenditure,Direct Transport Costs,C01,Vehicle repairs/maint'ce,13/03/2013,179926,159.00,Revenue income and expenditure,Municipal Vehicle Inspection Services Ltd,3646,1,VO,201212,CM21,P1,
B,Bromsgrove District Council,Surpluses/deficits on trading undertakings,Depot Services,Transport Related Expenditure,Direct Transport Costs,C01,Vehicle repairs/maint'ce,13/03/2013,179926,95.00,Revenue income and expenditure,Municipal Vehicle Inspection Services Ltd,3646,1,VO,201212,DW11,P1,
B,Bromsgrove District Council,Surpluses/deficits on trading undertakings,Depot Services,Supplies and Services,Services,D43,Training fees,14/03/2013,179929,504.00,Revenue income and expenditure,Pride Training UK Ltd,8924,1,VP,201212,DP02,P3,
B,Bromsgrove District Council,Surpluses/deficits on trading undertakings,Depot Services,Supplies and Services,Services,D43,Training fees,14/03/2013,179929,325.00,Revenue income and expenditure,Pride Training UK Ltd,8924,1,VP,201212,DP02,P1,
B,Bromsgrove District Council,Highways and transport services,Off-street Parking,Supplies and Services,Miscellaneous expenses,D88,Miscellaneous expenses,21/03/2013,179930,"1,858.20",Revenue income and expenditure,Jade Security Services Ltd,7651,1,VO,201212,CP00,P1,
B,Bromsgrove District Council,General Fund Housing Services,Travellers Sites,Supplies and Services,Services,D48,Contractors' fees/charges/SLA's,21/03/2013,179931,0.00,Revenue income and expenditure,WD Ornamental Ironwork,10033,2,VP,201212,HG02,P1,
B,Bromsgrove District Council,General Fund Housing Services,Travellers Sites,Premise Related Expenditure,"Repairs, alterations and maint. of buildings",B04,Repair/maint'ce (CIS tax deductible),21/03/2013,179931,70.00,Revenue income and expenditure,WD Ornamental Ironwork,10033,2,VP,201212,HG02,P1,
B,Bromsgrove District Council,Highways and transport services,Off-street Parking,Premise Related Expenditure,"Repairs, alterations and maint. of buildings",B03,Internal repair/maint. (reg'd for gross pay't),14/03/2013,179933,276.46,Revenue income and expenditure,Thyssenkrupp Elevator UK Ltd,3658,1,VP,201212,CP01,P1,
B,Bromsgrove District Council,Not BVACOP Service,Not BVACOP Sub Division,Current Assets,Stocks,300,Stock Movement,14/03/2013,179935,920.27,,Chris Tallis Farm Machinery Ltd,10074,1,VO,201212,XX611,P1,
B,Bromsgrove District Council,Surpluses/deficits on trading undertakings,Depot Services,Supplies and Services,Communication and computing,D53,Postage/packaging,14/03/2013,179935,8.50,Revenue income and expenditure,Chris Tallis Farm Machinery Ltd,10074,1,VO,201212,DW32,P1,
B,Bromsgrove District Council,Environmental Services,Cemeteries,Transport Related Expenditure,Direct Transport Costs,C01,Vehicle repairs/maint'ce,14/03/2013,179935,129.38,Revenue income and expenditure,Chris Tallis Farm Machinery Ltd,10074,1,VO,201212,CE01,P1,
B,Bromsgrove District Council,Environmental Services,Recycling,Supplies and Services,Services,D48,Contractors' fees/charges/SLA's,14/03/2013,179936,14.95,Revenue income and expenditure,Berryman,3621,1,VP,201212,EH06,P1,
B,Bromsgrove District Council,Surpluses/deficits on trading undertakings,Internal Business Units and Support Services,Premise Related Expenditure,Fixtures and Fittings,B63,Internal fixtures/fittings - maint'ce,20/03/2013,179937,658.10,Revenue income and expenditure,Fire Safe Services Ltd,10056,1,VO,201212,ES20,P1,
B,Bromsgrove District Council,Planning and Development Services,Other Building control work,Supplies and Services,Services,D42,Seminar and course fees,13/03/2013,179938,"2,628.56",Revenue income and expenditure,LABC,6572,1,VO,201212,BC00,P1,
B,Bromsgrove District Council,Not BVACOP Service,Not BVACOP Sub Division,Current Assets,Stocks,300,Stock Movement,13/03/2013,179939,125.54,,Scarab Sweepers Ltd,5827,1,VO,201212,XX611,P1,
B,Bromsgrove District Council,Surpluses/deficits on trading undertakings,Depot Services,Transport Related Expenditure,Direct Transport Costs,C01,Vehicle repairs/maint'ce,13/03/2013,179939,161.70,Revenue income and expenditure,Scarab Sweepers Ltd,5827,1,VO,201212,DW21,P1,
B,Bromsgrove District Council,Surpluses/deficits on trading undertakings,Depot Services,Supplies and Services,Communication and computing,D53,Postage/packaging,13/03/2013,179939,17.00,Revenue income and expenditure,Scarab Sweepers Ltd,5827,1,VO,201212,DW21,P1,
B,Bromsgrove District Council,Surpluses/deficits on trading undertakings,Internal Business Units and Support Services,Supplies and Services,Communication and computing,D77,Internet,14/03/2013,179941,770.00,Revenue income and expenditure,Cable & Wireless UK,1103,1,VN,201212,IT12,P1,
B,Bromsgrove District Council,Surpluses/deficits on trading undertakings,Internal Business Units and Support Services,Premise Related Expenditure,Cleaning and domestic supplies,B80,Contract cleaning,14/03/2013,179943,25.00,Revenue income and expenditure,M I C Cleaning,1146,1,VN,201212,ES20,P1,
B,Bromsgrove District Council,Surpluses/deficits on trading undertakings,Internal Business Units and Support Services,Premise Related Expenditure,Cleaning and domestic supplies,B80,Contract cleaning,14/03/2013,179944,330.50,Revenue income and expenditure,M I C Cleaning,1146,1,VN,201212,ES20,P1,
B,Bromsgrove District Council,Surpluses/deficits on trading undertakings,Internal Business Units and Support Services,Premise Related Expenditure,Energy Costs,B23,Gas,15/03/2013,179948,812.25,Revenue income and expenditure,Total Gas & Power,10244,1,VN,201212,ES20,P1,
B,Bromsgrove District Council,Surpluses/deficits on trading undertakings,Depot Services,Premise Related Expenditure,Energy Costs,B23,Gas,14/03/2013,179949,479.91,Revenue income and expenditure,Total Gas & Power,10244,1,VN,201212,DP02,P1,
B,Bromsgrove District Council,Surpluses/deficits on trading undertakings,Internal Business Units and Support Services,Premise Related Expenditure,Fixtures and Fittings,B63,Internal fixtures/fittings - maint'ce,14/03/2013,179955,37.40,Revenue income and expenditure,Travis Perkins Ltd,1656,1,VP,201212,ES20,P1,
B,Bromsgrove District Council,Highways and transport services,Off-street Parking,Supplies and Services,"Equipment, furniture and materials",D03,Equipment - rental/lease,14/03/2013,179956,444.68,Revenue income and expenditure,Travis Perkins Ltd,1656,1,VP,201212,CP01,P1,
B,Bromsgrove District Council,Surpluses/deficits on trading undertakings,Internal Business Units and Support Services,Premise Related Expenditure,Cleaning and domestic supplies,B80,Contract cleaning,27/03/2013,179957,659.75,Revenue income and expenditure,We Clean Ltd,2966,1,VO,201212,ES20,P1,
B,Bromsgrove District Council,Surpluses/deficits on trading undertakings,Depot Services,Supplies and Services,Miscellaneous expenses,D88,Miscellaneous expenses,14/03/2013,179959,800.00,Revenue income and expenditure,ICL Environmental Services Ltd,3250,2,VP,201212,DW21,P1,
B,Bromsgrove District Council,Surpluses/deficits on trading undertakings,Depot Services,Transport Related Expenditure,Contract Hire and operating leases,C31,Contract hire of vehicles,14/03/2013,179960,"1,350.00",Revenue income and expenditure,CMS Hire Ltd,6635,1,VP,201212,DW14,P1,
B,Bromsgrove District Council,Surpluses/deficits on trading undertakings,Depot Services,Transport Related Expenditure,Contract Hire and operating leases,C31,Contract hire of vehicles,14/03/2013,179961,"1,275.00",Revenue income and expenditure,CMS Hire Ltd,6635,1,VP,201212,DW14,P1,
B,Bromsgrove District Council,Planning and Development Services,Advice,Supplies and Services,Services,D47,Consultants' fees,14/03/2013,179963,460.00,Revenue income and expenditure,Kernon Countryside Consultants,1381,1,VO,201212,DC00,P1,
B,Bromsgrove District Council,Environmental Services,Cemeteries,Supplies and Services,Miscellaneous expenses,D88,Miscellaneous expenses,28/03/2013,179965,69.00,Revenue income and expenditure,Mercia Waste Management Ltd,1433,1,VP,201212,CE01,P1,
B,Bromsgrove District Council,Environmental Services,Cemeteries,Supplies and Services,Miscellaneous expenses,D88,Miscellaneous expenses,18/03/2013,179966,11.70,Revenue income and expenditure,Mercia Waste Management Ltd,1433,1,VO,201212,CE01,P1,
B,Bromsgrove District Council,Surpluses/deficits on trading undertakings,Internal Business Units and Support Services,Premise Related Expenditure,Energy Costs,B22,Electricity,15/03/2013,179968,"1,905.76",Revenue income and expenditure,Npower Limited,2080,1,VN,201212,ES20,P1,
B,Bromsgrove District Council,Environmental Services,Community Safety (Crime Reduction),Premise Related Expenditure,Energy Costs,B22,Electricity,26/03/2013,179969,147.46,Revenue income and expenditure,Npower Limited,2080,1,VN,201212,CS22,P1,
B,Bromsgrove District Council,Highways and transport services,Off-street Parking,Premise Related Expenditure,Energy Costs,B22,Electricity,14/03/2013,179970,116.43,Revenue income and expenditure,Npower Limited,2080,1,VN,201212,CP00,P1,
B,Bromsgrove District Council,Highways and transport services,Street Lighting,Premise Related Expenditure,Energy Costs,B22,Electricity,15/03/2013,179971,2.07,Revenue income and expenditure,Npower Limited,2080,1,VN,201212,HW08,P1,
B,Bromsgrove District Council,Highways and transport services,Off-street Parking,Premise Related Expenditure,Energy Costs,B22,Electricity,14/03/2013,179972,973.98,Revenue income and expenditure,Npower Limited,2080,1,VN,201212,CP00,P1,
B,Bromsgrove District Council,Surpluses/deficits on trading undertakings,Internal Business Units and Support Services,Supplies and Services,Communication and computing,D56,Computer - hardware,18/03/2013,179975,42.00,Revenue income and expenditure,Probrand Limited,9439,1,VO,201212,IT12,P1,
B,Bromsgrove District Council,Surpluses/deficits on trading undertakings,Depot Services,Supplies and Services,Communication and computing,D51,Printing and stationery,14/03/2013,179976,881.33,Revenue income and expenditure,Kaizen Consultants,7136,1,VP,201212,DW18,P1,
B,Bromsgrove District Council,Not BVACOP Service,Not BVACOP Sub Division,Current Assets,Stocks,300,Stock Movement,14/03/2013,179978,15.38,,Imperial Commercials Ltd.,1403,1,VP,201212,XX611,P1,
B,Bromsgrove District Council,Not BVACOP Service,Not BVACOP Sub Division,Current Assets,Stocks,300,Stock Movement,14/03/2013,179985,8.25,,Chris Tallis Farm Machinery Ltd,10074,1,VP,201212,XX611,P1,
B,Bromsgrove District Council,Environmental Services,Public Health,Supplies and Services,Miscellaneous expenses,D87,Marketing/promotion/publicity,20/03/2013,179986,634.96,Revenue income and expenditure,Kaizen Consultants,7136,1,VO,201212,EH02,P1,
B,Bromsgrove District Council,Not BVACOP Service,Not BVACOP Sub Division,Current Assets,Stocks,300,Stock Movement,14/03/2013,179987,202.46,,PCS Jangro,7294,1,VP,201212,XX611,P1,
B,Bromsgrove District Council,Surpluses/deficits on trading undertakings,Internal Business Units and Support Services,Supplies and Services,Communication and computing,D77,Internet,14/03/2013,179990,197.89,Revenue income and expenditure,Thus plc.,5306,1,VN,201212,IT12,P1,
B,Bromsgrove District Council,Not BVACOP Service,Not BVACOP Sub Division,Current Assets,Stocks,300,Stock Movement,21/03/2013,180001,428.80,,Foxall Industrial Supplies Ltd,1857,1,VP,201212,XX611,P1,
B,Bromsgrove District Council,Planning and Development Services,Other Building control work,Supplies and Services,Communication and computing,D57,Computer - software,25/03/2013,180002,500.00,Revenue income and expenditure,IDOX Software Ltd,6852,1,VO,201212,BR03,P1,
B,Bromsgrove District Council,Not BVACOP Service,Not BVACOP Sub Division,Current Assets,Stocks,300,Stock Movement,21/03/2013,180003,166.30,,Dennis Eagle Ltd,1191,1,VP,201212,XX611,P1,
B,Bromsgrove District Council,Surpluses/deficits on trading undertakings,Depot Services,Transport Related Expenditure,Direct Transport Costs,C01,Vehicle repairs/maint'ce,21/03/2013,180003,327.09,Revenue income and expenditure,Dennis Eagle Ltd,1191,1,VP,201212,DW11,P1,
B,Bromsgrove District Council,Planning and Development Services,Other Building control work,Supplies and Services,"Equipment, furniture and materials",D01,Equipment - purchase,21/03/2013,180004,"2,480.00",Revenue income and expenditure,Resolution Data Management Ltd,9893,1,VP,201212,BC00,P1,
B,Bromsgrove District Council,Not BVACOP Service,Not BVACOP Sub Division,Capital Expenditure,Operational Land and Buildings,X04,Other contract payments,22/03/2013,180005,"2,350.00",Capital income and expenditure,Redditch Sports Turf Services Ltd,9617,1,VO,201212,CAPC,P1,
B,Bromsgrove District Council,Surpluses/deficits on trading undertakings,Internal Business Units and Support Services,Supplies and Services,Services,D47,Consultants' fees,19/03/2013,180006,306.90,Revenue income and expenditure,Giant Professional Ltd,10137,1,VO,201212,IT12,P1,
B,Bromsgrove District Council,Surpluses/deficits on trading undertakings,Depot Services,Supplies and Services,Communication and computing,D53,Postage/packaging,19/03/2013,180007,10.00,Revenue income and expenditure,WasteParts UK Ltd,6508,1,VO,201212,DW11,P1,
B,Bromsgrove District Council,Surpluses/deficits on trading undertakings,Depot Services,Transport Related Expenditure,Direct Transport Costs,C01,Vehicle repairs/maint'ce,19/03/2013,180007,297.52,Revenue income and expenditure,WasteParts UK Ltd,6508,1,VO,201212,DW11,P1,
B,Bromsgrove District Council,Not BVACOP Service,Not BVACOP Sub Division,Current Assets,Stocks,300,Stock Movement,19/03/2013,180008,256.60,,Foxall Industrial Supplies Ltd,1857,1,VO,201212,XX611,P1,
B,Bromsgrove District Council,Surpluses/deficits on trading undertakings,Depot Services,Premise Related Expenditure,Water Services,B51,Water charges,26/03/2013,180009,"3,600.79",Revenue income and expenditure,Severn Trent Water,8934,1,VO,201212,DS61,P4,
B,Bromsgrove District Council,Not BVACOP Service,Not BVACOP Sub Division,Current Assets,Stocks,300,Stock Movement,19/03/2013,180011,45.43,,Imperial Commercials Ltd.,1403,1,VO,201212,XX611,P1,
B,Bromsgrove District Council,Not BVACOP Service,Not BVACOP Sub Division,Current Assets,Stocks,300,Stock Movement,19/03/2013,180012,25.16,,Imperial Commercials Ltd.,1403,1,VO,201212,XX611,P1,
B,Bromsgrove District Council,Surpluses/deficits on trading undertakings,Depot Services,Supplies and Services,"Equipment, furniture and materials",D01,Equipment - purchase,19/03/2013,180013,69.00,Revenue income and expenditure,Imperial Commercials Ltd.,1403,1,VO,201212,DT41,P1,
B,Bromsgrove District Council,Not BVACOP Service,Not BVACOP Sub Division,Current Assets,Stocks,300,Stock Movement,19/03/2013,180014,323.40,,Arco Ltd,1027,1,VO,201212,XX611,P1,
B,Bromsgrove District Council,Surpluses/deficits on trading undertakings,Depot Services,Supplies and Services,Communication and computing,D51,Printing and stationery,21/03/2013,180016,299.88,Revenue income and expenditure,Office Depot UK Ltd,6249,1,VP,201212,DP02,P1,
B,Bromsgrove District Council,Surpluses/deficits on trading undertakings,Depot Services,Supplies and Services,Communication and computing,D51,Printing and stationery,21/03/2013,180016,2.22,Revenue income and expenditure,Office Depot UK Ltd,6249,1,VP,201212,DP02,P4,
B,Bromsgrove District Council,Not BVACOP Service,Not BVACOP Sub Division,Current Assets,Stocks,300,Stock Movement,21/03/2013,180017,687.60,,Danline International Ltd,4507,1,VP,201212,XX611,P1,
B,Bromsgrove District Council,General Fund Housing Services,Travellers Sites,Supplies and Services,Services,D48,Contractors' fees/charges/SLA's,25/03/2013,180018,0.00,Revenue income and expenditure,WD Ornamental Ironwork,10033,2,VO,201212,HG02,P1,
B,Bromsgrove District Council,General Fund Housing Services,Travellers Sites,Premise Related Expenditure,"Repairs, alterations and maint. of buildings",B04,Repair/maint'ce (CIS tax deductible),25/03/2013,180018,"2,150.00",Revenue income and expenditure,WD Ornamental Ironwork,10033,2,VO,201212,HG02,P1,
B,Bromsgrove District Council,,,Supplies and Services,"Equipment, furniture and materials",D03,Equipment - rental/lease,21/03/2013,180023,26.70,Revenue income and expenditure,Angel Springs Ltd,8009,1,VP,201212,CC01,P1,
B,Bromsgrove District Council,General Fund Housing Services,,Supplies and Services,Grants and subscriptions,D71,Grants,19/03/2013,180025,"3,000.00",Revenue income and expenditure,St Pauls Hostel,9769,1,VO,201212,HG37,P4,
B,Bromsgrove District Council,General Fund Housing Services,,Supplies and Services,Grants and subscriptions,D71,Grants,19/03/2013,180026,"8,062.50",Revenue income and expenditure,St Basils,9200,1,VO,201212,HG37,P4,
B,Bromsgrove District Council,Surpluses/deficits on trading undertakings,Depot Services,Supplies and Services,"Equipment, furniture and materials",D06,Materials - purchased,19/03/2013,180027,52.36,Revenue income and expenditure,Pressure Coolers Trading as Maestro International,9070,1,VO,201212,DP02,P1,
B,Bromsgrove District Council,,,Supplies and Services,Miscellaneous expenses,D88,Miscellaneous expenses,21/03/2013,180028,213.13,Revenue income and expenditure,G4S Cash Solutions UK Ltd.,9753,1,VP,201212,CC01,P1,
B,Bromsgrove District Council,Surpluses/deficits on trading undertakings,Internal Business Units and Support Services,Supplies and Services,Communication and computing,D57,Computer - software,21/03/2013,180030,448.48,Revenue income and expenditure,Oracle Corporation UK Ltd.,9231,3,VP,201212,IT12,P1,
B,Bromsgrove District Council,Cultural and Related Services,Museums and Gallaries,Supplies and Services,Miscellaneous expenses,D88,Miscellaneous expenses,21/03/2013,180031,654.05,Revenue income and expenditure,A D T Fire and Security,1244,1,VN,201212,MT91,P1,
B,Bromsgrove District Council,Central Services to the Public,Registration of Electors,Supplies and Services,"Equipment, furniture and materials",D02,Equipment - maintenance,20/03/2013,180032,480.00,Revenue income and expenditure,Mailopeners,7223,1,VN,201212,EL00,P1,
B,Bromsgrove District Council,Highways and transport services,Off-street Parking,Supplies and Services,Communication and computing,D77,Internet,20/03/2013,180033,95.48,Revenue income and expenditure,British Telecommunications plc,1098,1,VN,201212,CP00,P1,
B,Bromsgrove District Council,Surpluses/deficits on trading undertakings,Internal Business Units and Support Services,Supplies and Services,"Equipment, furniture and materials",D03,Equipment - rental/lease,22/03/2013,180035,72.40,Revenue income and expenditure,Oce (UK) Ltd,1918,1,VN,201212,PS01,P1,
B,Bromsgrove District Council,Surpluses/deficits on trading undertakings,Internal Business Units and Support Services,Supplies and Services,"Equipment, furniture and materials",D03,Equipment - rental/lease,22/03/2013,180036,24.85,Revenue income and expenditure,Oce (UK) Ltd,1918,1,VN,201212,PS01,P1,
B,Bromsgrove District Council,,,Supplies and Services,Services,D49,Miscellaneous services,26/03/2013,180042,"4,000.00",Revenue income and expenditure,Alvechurch Communities Together,8982,1,VN,201212,CM24,P4,
B,Bromsgrove District Council,Central Services to the Public,Registration of Electors,Supplies and Services,Communication and computing,D53,Postage/packaging,20/03/2013,180043,236.08,Revenue income and expenditure,Print.uk.com,2722,1,VN,201212,EL00,P1,
B,Bromsgrove District Council,Not BVACOP Service,Not BVACOP Sub Division,Current Assets,Stocks,300,Stock Movement,20/03/2013,180045,"22,438.88",,Harvest Energy Ltd,9164,1,VO,201212,XX611,P1,
B,Bromsgrove District Council,Surpluses/deficits on trading undertakings,Depot Services,Supplies and Services,"Equipment, furniture and materials",D02,Equipment - maintenance,26/03/2013,180051,249.52,Revenue income and expenditure,G.S. Adams Limited,5337,2,VO,201212,DP02,P1,
B,Bromsgrove District Council,Surpluses/deficits on trading undertakings,Depot Services,Supplies and Services,Services,D47,Consultants' fees,25/03/2013,180056,"11,162.79",Revenue income and expenditure,Vanguard Consulting Ltd.,9322,3,VN,201212,BT01,P1,
B,Bromsgrove District Council,Surpluses/deficits on trading undertakings,Depot Services,Supplies and Services,Services,D47,Consultants' fees,25/03/2013,180056,837.21,Revenue income and expenditure,Vanguard Consulting Ltd.,9322,3,VN,201212,BT03,P1,
B,Bromsgrove District Council,Surpluses/deficits on trading undertakings,Internal Business Units and Support Services,Supplies and Services,Communication and computing,D77,Internet,25/03/2013,180057,146.63,Revenue income and expenditure,British Telecommunications plc,1098,1,VN,201212,IT12,P1,
B,Bromsgrove District Council,Surpluses/deficits on trading undertakings,Internal Business Units and Support Services,Supplies and Services,Communication and computing,D77,Internet,25/03/2013,180058,13.70,Revenue income and expenditure,British Telecommunications plc,1098,1,VN,201212,IT12,P1,
B,Bromsgrove District Council,Surpluses/deficits on trading undertakings,Internal Business Units and Support Services,Supplies and Services,Communication and computing,D51,Printing and stationery,22/03/2013,180059,96.11,Revenue income and expenditure,Ricoh UK Ltd,6528,1,VN,201212,PS01,P1,
B,Bromsgrove District Council,Surpluses/deficits on trading undertakings,Internal Business Units and Support Services,Supplies and Services,Communication and computing,D59,Telephones,25/03/2013,180062,545.62,Revenue income and expenditure,Daisy Communications,7578,1,VN,201212,IT12,P1,
B,Bromsgrove District Council,Surpluses/deficits on trading undertakings,Internal Business Units and Support Services,Supplies and Services,Communication and computing,D77,Internet,25/03/2013,180063,72.99,Revenue income and expenditure,British Telecommunications plc,1098,1,VN,201212,IT12,P1,
B,Bromsgrove District Council,General Fund Housing Services,Housing Strategy,Supplies and Services,Services,D47,Consultants' fees,21/03/2013,180065,525.00,Revenue income and expenditure,Guy Wardle,4866,1,VP,201212,HG40,P4,
B,Bromsgrove District Council,Surpluses/deficits on trading undertakings,Depot Services,Transport Related Expenditure,Direct Transport Costs,C08,MOT tests,21/03/2013,180068,35.00,Revenue income and expenditure,Imperial Commercials Ltd.,1403,1,VP,201212,DW11,P1,
B,Bromsgrove District Council,Surpluses/deficits on trading undertakings,Depot Services,Transport Related Expenditure,Direct Transport Costs,C08,MOT tests,21/03/2013,180068,136.00,Revenue income and expenditure,Imperial Commercials Ltd.,1403,1,VP,201212,DW11,P4,
B,Bromsgrove District Council,Surpluses/deficits on trading undertakings,Depot Services,Transport Related Expenditure,Direct Transport Costs,C08,MOT tests,21/03/2013,180069,35.00,Revenue income and expenditure,Imperial Commercials Ltd.,1403,1,VP,201212,DW21,P1,
B,Bromsgrove District Council,Surpluses/deficits on trading undertakings,Depot Services,Transport Related Expenditure,Direct Transport Costs,C08,MOT tests,21/03/2013,180069,112.00,Revenue income and expenditure,Imperial Commercials Ltd.,1403,1,VP,201212,DW21,P4,
B,Bromsgrove District Council,Surpluses/deficits on trading undertakings,Depot Services,Transport Related Expenditure,Direct Transport Costs,C08,MOT tests,21/03/2013,180070,117.00,Revenue income and expenditure,Imperial Commercials Ltd.,1403,1,VP,201212,DW14,P4,
B,Bromsgrove District Council,Surpluses/deficits on trading undertakings,Depot Services,Transport Related Expenditure,Direct Transport Costs,C08,MOT tests,21/03/2013,180070,35.00,Revenue income and expenditure,Imperial Commercials Ltd.,1403,1,VP,201212,DW14,P1,
B,Bromsgrove District Council,Surpluses/deficits on trading undertakings,Internal Business Units and Support Services,Supplies and Services,Services,D43,Training fees,21/03/2013,180074,175.00,Revenue income and expenditure,No5 Chambers,2868,1,VP,201212,LS00,P1,
B,Bromsgrove District Council,Planning and Development Services,Advice,Supplies and Services,Services,D47,Consultants' fees,25/03/2013,180075,333.20,Revenue income and expenditure,Joe Holyoak,6045,1,VO,201212,DC00,P4,
B,Bromsgrove District Council,,,Supplies and Services,Communication and computing,D51,Printing and stationery,21/03/2013,180076,142.50,Revenue income and expenditure,Office Depot UK Ltd,6249,1,VP,201212,CC01,P1,
B,Bromsgrove District Council,Not BVACOP Service,Not BVACOP Sub Division,Current Assets,Stocks,300,Stock Movement,21/03/2013,180077,462.00,,Jewson Ltd,2109,1,VP,201212,XX611,P1,
B,Bromsgrove District Council,Planning and Development Services,Advice,Supplies and Services,Services,D47,Consultants' fees,21/03/2013,180078,"1,875.00",Revenue income and expenditure,Link Microtek Limited,10312,1,VP,201212,DC00,P1,
B,Bromsgrove District Council,Not BVACOP Service,Not BVACOP Sub Division,Capital Expenditure,Capital Grants,X30,Capital grants,21/03/2013,180079,"17,000.00",Capital income and expenditure,Bromsgrove Housing Initiatives,5941,1,VP,201212,CAPP,P5,
B,Bromsgrove District Council,Surpluses/deficits on trading undertakings,Depot Services,Transport Related Expenditure,Direct Transport Costs,C01,Vehicle repairs/maint'ce,21/03/2013,180080,88.71,Revenue income and expenditure,Dennis Eagle Ltd,1191,1,VP,201212,DW11,P1,
B,Bromsgrove District Council,Not BVACOP Service,Not BVACOP Sub Division,Current Assets,Stocks,300,Stock Movement,21/03/2013,180081,682.08,,Dennis Eagle Ltd,1191,1,VP,201212,XX611,P1,
B,Bromsgrove District Council,,,Employees,Direct Employee Expenses,A10,Agency workers,28/03/2013,180083,925.00,Revenue income and expenditure,Morgan Hunt UK Ltd,9519,1,VP,201212,RB10,P1,
B,Bromsgrove District Council,Surpluses/deficits on trading undertakings,Internal Business Units and Support Services,Supplies and Services,Communication and computing,D59,Telephones,25/03/2013,180084,64.85,Revenue income and expenditure,British Telecommunications plc,1098,1,VN,201212,IT12,P1,
B,Bromsgrove District Council,Surpluses/deficits on trading undertakings,Internal Business Units and Support Services,Supplies and Services,Communication and computing,D59,Telephones,25/03/2013,180085,63.15,Revenue income and expenditure,British Telecommunications plc,1098,1,VN,201212,IT12,P1,
B,Bromsgrove District Council,Surpluses/deficits on trading undertakings,Internal Business Units and Support Services,Supplies and Services,Communication and computing,D77,Internet,25/03/2013,180086,12.13,Revenue income and expenditure,British Telecommunications plc,1098,1,VN,201212,IT12,P1,
B,Bromsgrove District Council,Surpluses/deficits on trading undertakings,Internal Business Units and Support Services,Supplies and Services,Communication and computing,D57,Computer - software,28/03/2013,180087,"1,200.00",Revenue income and expenditure,Cutter Project,9702,1,VP,201212,IT12,P1,
B,Bromsgrove District Council,Highways and transport services,Environ Maint - Other Roads,Premise Related Expenditure,Fixtures and Fittings,B61,External fixtures/fittings - maint'ce,28/03/2013,180090,548.40,Revenue income and expenditure,Bus Shelters Ltd,10292,2,VP,201212,HW04,P1,
B,Bromsgrove District Council,Surpluses/deficits on trading undertakings,Depot Services,Employees,Indirect Employee Expenses,A23,Training for professional qualifications,28/03/2013,180091,335.00,Revenue income and expenditure,Pesticide Training,6824,1,VP,201212,DW32,P1,
B,Bromsgrove District Council,Surpluses/deficits on trading undertakings,Internal Business Units and Support Services,Supplies and Services,Services,D43,Training fees,28/03/2013,180092,99.00,Revenue income and expenditure,MBL Seminars Ltd,6246,1,VP,201212,LS00,P1,
B,Bromsgrove District Council,Surpluses/deficits on trading undertakings,Internal Business Units and Support Services,Supplies and Services,Miscellaneous expenses,D88,Miscellaneous expenses,28/03/2013,180093,20.00,Revenue income and expenditure,Stephanie Sergeant,7675,1,VP,201212,LS05,P4,
B,Bromsgrove District Council,Surpluses/deficits on trading undertakings,Depot Services,Employees,Direct Employee Expenses,A10,Agency workers,25/03/2013,180099,654.40,Revenue income and expenditure,Matrix SCM Ltd,9043,1,VN,201212,DT41,P1,
B,Bromsgrove District Council,Planning and Development Services,Advice,Employees,Direct Employee Expenses,A10,Agency workers,25/03/2013,180099,"1,495.97",Revenue income and expenditure,Matrix SCM Ltd,9043,1,VN,201212,DC00,P1,
B,Bromsgrove District Council,Surpluses/deficits on trading undertakings,Depot Services,Employees,Direct Employee Expenses,A10,Agency workers,25/03/2013,180099,"4,218.79",Revenue income and expenditure,Matrix SCM Ltd,9043,1,VN,201212,DW11,P1,
B,Bromsgrove District Council,Surpluses/deficits on trading undertakings,Depot Services,Employees,Direct Employee Expenses,A10,Agency workers,25/03/2013,180099,"1,665.81",Revenue income and expenditure,Matrix SCM Ltd,9043,1,VN,201212,DW21,P1,
B,Bromsgrove District Council,Surpluses/deficits on trading undertakings,Depot Services,Employees,Direct Employee Expenses,A10,Agency workers,26/03/2013,180100,405.88,Revenue income and expenditure,Matrix SCM Ltd,9043,1,VN,201212,DW14,P1,
B,Bromsgrove District Council,Surpluses/deficits on trading undertakings,Depot Services,Employees,Direct Employee Expenses,A10,Agency workers,26/03/2013,180100,"1,382.87",Revenue income and expenditure,Matrix SCM Ltd,9043,1,VN,201212,DW21,P1,
B,Bromsgrove District Council,Surpluses/deficits on trading undertakings,Depot Services,Employees,Direct Employee Expenses,A10,Agency workers,26/03/2013,180100,"2,681.52",Revenue income and expenditure,Matrix SCM Ltd,9043,1,VN,201212,DW11,P1,
B,Bromsgrove District Council,Surpluses/deficits on trading undertakings,Depot Services,Employees,Direct Employee Expenses,A10,Agency workers,26/03/2013,180100,654.40,Revenue income and expenditure,Matrix SCM Ltd,9043,1,VN,201212,DT41,P1,
B,Bromsgrove District Council,Environmental Services,,Employees,Direct Employee Expenses,A10,Agency workers,26/03/2013,180100,679.87,Revenue income and expenditure,Matrix SCM Ltd,9043,1,VN,201212,YA02,P1,
B,Bromsgrove District Council,Surpluses/deficits on trading undertakings,Depot Services,Supplies and Services,"Equipment, furniture and materials",D02,Equipment - maintenance,27/03/2013,180102,206.75,Revenue income and expenditure,Chubb Electronic Security Ltd,4717,1,VN,201212,DP02,P1,
B,Bromsgrove District Council,Surpluses/deficits on trading undertakings,Depot Services,Supplies and Services,"Equipment, furniture and materials",D02,Equipment - maintenance,28/03/2013,180103,262.36,Revenue income and expenditure,Chubb Electronic Security Ltd,4717,1,VN,201212,DP02,P1,
B,Bromsgrove District Council,Surpluses/deficits on trading undertakings,Depot Services,Supplies and Services,"Equipment, furniture and materials",D02,Equipment - maintenance,27/03/2013,180104,349.43,Revenue income and expenditure,Chubb Electronic Security Ltd,4717,1,VN,201212,DP02,P1,
B,Bromsgrove District Council,Surpluses/deficits on trading undertakings,Depot Services,Supplies and Services,"Equipment, furniture and materials",D02,Equipment - maintenance,27/03/2013,180105,227.50,Revenue income and expenditure,Chubb Electronic Security Ltd,4717,1,VN,201212,DP02,P1,
B,Bromsgrove District Council,Surpluses/deficits on trading undertakings,Internal Business Units and Support Services,Supplies and Services,Catering,D23,Catering (incl.food purchases),28/03/2013,180109,19.50,Revenue income and expenditure,Blue Mountain Water,9003,1,VP,201212,IT12,P1,
B,Bromsgrove District Council,Highways and transport services,Environ Maint - Other Roads,Premise Related Expenditure,Fixtures and Fittings,B61,External fixtures/fittings - maint'ce,27/03/2013,180112,350.00,Revenue income and expenditure,R Hancocks Watch & Clock Ltd,6387,1,VN,201212,HW01,P1,
B,Bromsgrove District Council,Cultural and Related Services,Museums and Gallaries,Premise Related Expenditure,Energy Costs,B22,Electricity,25/03/2013,180114,5.49,Revenue income and expenditure,Npower Limited,2080,1,VN,201212,MT91,P1,
B,Bromsgrove District Council,Cultural and Related Services,Museums and Gallaries,Premise Related Expenditure,Energy Costs,B22,Electricity,25/03/2013,180115,14.46,Revenue income and expenditure,Npower Limited,2080,1,VN,201212,MT91,P1,
B,Bromsgrove District Council,,,Supplies and Services,Communication and computing,D53,Postage/packaging,26/03/2013,180117,283.33,Revenue income and expenditure,Royal Mail Group Plc,1558,1,VN,201212,CC01,P1,
B,Bromsgrove District Council,Surpluses/deficits on trading undertakings,Depot Services,Premise Related Expenditure,Fixtures and Fittings,B61,External fixtures/fittings - maint'ce,28/03/2013,180139,82.30,Revenue income and expenditure,Queensbury Shelters Ltd,7464,1,VP,201212,DP02,P1,
B,Bromsgrove District Council,Surpluses/deficits on trading undertakings,Internal Business Units and Support Services,Supplies and Services,Services,D47,Consultants' fees,28/03/2013,180140,936.50,Revenue income and expenditure,Bevan Brittan LLP,5549,1,VP,201212,LS00,P1,
B,Bromsgrove District Council,Not BVACOP Service,Not BVACOP Sub Division,Current Assets,Stocks,300,Stock Movement,28/03/2013,180144,252.20,,Imperial Commercials Ltd.,1403,1,VP,201212,XX611,P1,
B,Bromsgrove District Council,Surpluses/deficits on trading undertakings,Depot Services,Transport Related Expenditure,Direct Transport Costs,C01,Vehicle repairs/maint'ce,28/03/2013,180144,29.50,Revenue income and expenditure,Imperial Commercials Ltd.,1403,1,VP,201212,DW21,P1,
B,Bromsgrove District Council,Surpluses/deficits on trading undertakings,Depot Services,Supplies and Services,"Equipment, furniture and materials",D06,Materials - purchased,28/03/2013,180144,8.63,Revenue income and expenditure,Imperial Commercials Ltd.,1403,1,VP,201212,DT41,P1,
B,Bromsgrove District Council,Not BVACOP Service,Not BVACOP Sub Division,Current Assets,Stocks,300,Stock Movement,28/03/2013,180145,29.34,,Imperial Commercials Ltd.,1403,1,VP,201212,XX611,P1,
B,Bromsgrove District Council,Not BVACOP Service,Not BVACOP Sub Division,Current Assets,Stocks,300,Stock Movement,28/03/2013,180146,397.06,,Imperial Commercials Ltd.,1403,1,VP,201212,XX611,P1,
B,Bromsgrove District Council,Environmental Services,Cemeteries,Supplies and Services,"Equipment, furniture and materials",D06,Materials - purchased,28/03/2013,180153,40.26,Revenue income and expenditure,Broad Street D.I.Y,1089,1,VP,201212,CE01,P1,
B,Bromsgrove District Council,Highways and transport services,Off-street Parking,Supplies and Services,"Equipment, furniture and materials",D06,Materials - purchased,28/03/2013,180154,84.69,Revenue income and expenditure,Broad Street D.I.Y,1089,1,VP,201212,CP00,P1,
B,Bromsgrove District Council,Surpluses/deficits on trading undertakings,Internal Business Units and Support Services,Supplies and Services,"Equipment, furniture and materials",D06,Materials - purchased,28/03/2013,180155,38.23,Revenue income and expenditure,Broad Street D.I.Y,1089,1,VP,201212,ES20,P1,
B,Bromsgrove District Council,Surpluses/deficits on trading undertakings,Depot Services,Supplies and Services,"Equipment, furniture and materials",D06,Materials - purchased,28/03/2013,180156,3.74,Revenue income and expenditure,Broad Street D.I.Y,1089,1,VP,201212,DW21,P1,
B,Bromsgrove District Council,Cultural and Related Services,Community parks and open spaces,Supplies and Services,"Equipment, furniture and materials",D06,Materials - purchased,28/03/2013,180157,5.24,Revenue income and expenditure,Broad Street D.I.Y,1089,1,VP,201212,SP00,P1,
B,Bromsgrove District Council,Surpluses/deficits on trading undertakings,Depot Services,Supplies and Services,"Equipment, furniture and materials",D06,Materials - purchased,28/03/2013,180158,22.49,Revenue income and expenditure,Broad Street D.I.Y,1089,1,VP,201212,DP02,P1,
B,Bromsgrove District Council,Not BVACOP Service,Not BVACOP Sub Division,Current Assets,Stocks,300,Stock Movement,28/03/2013,180159,157.30,,Bromsgrove Motor Factors,1091,1,VP,201212,XX611,P1,
B,Bromsgrove District Council,Not BVACOP Service,Not BVACOP Sub Division,Current Assets,Stocks,300,Stock Movement,28/03/2013,180160,145.16,,Bromsgrove Motor Factors,1091,1,VP,201212,XX611,P1,
B,Bromsgrove District Council,Not BVACOP Service,Not BVACOP Sub Division,Current Assets,Stocks,300,Stock Movement,28/03/2013,180161,220.15,,Bromsgrove Motor Factors,1091,1,VP,201212,XX611,P1,
B,Bromsgrove District Council,Surpluses/deficits on trading undertakings,Depot Services,Transport Related Expenditure,Direct Transport Costs,C01,Vehicle repairs/maint'ce,28/03/2013,180162,78.96,Revenue income and expenditure,Bromsgrove Motor Factors,1091,1,VP,201212,DS62,P1,
B,Bromsgrove District Council,Surpluses/deficits on trading undertakings,Internal Business Units and Support Services,Supplies and Services,Communication and computing,D77,Internet,27/03/2013,180163,900.00,Revenue income and expenditure,Virgin Media Business,8767,1,VN,201212,IT10,P1,
B,Bromsgrove District Council,Surpluses/deficits on trading undertakings,Internal Business Units and Support Services,Supplies and Services,Communication and computing,D76,WAN links,27/03/2013,180163,"9,250.00",Revenue income and expenditure,Virgin Media Business,8767,1,VN,201212,IT12,P1,
B,Bromsgrove District Council,Surpluses/deficits on trading undertakings,Internal Business Units and Support Services,Supplies and Services,Communication and computing,D76,WAN links,27/03/2013,180163,"9,250.00",Revenue income and expenditure,Virgin Media Business,8767,1,VN,201212,IT10,P1,
B,Bromsgrove District Council,Cultural and Related Services,Museums and Gallaries,Premise Related Expenditure,Energy Costs,B22,Electricity,27/03/2013,180164,122.84,Revenue income and expenditure,Npower Limited,2080,1,VN,201212,MT91,P2,
B,Bromsgrove District Council,Not BVACOP Service,Not BVACOP Sub Division,Current Assets,Stocks,300,Stock Movement,27/03/2013,180165,"26,505.21",,Harvest Energy Ltd,9164,1,VO,201212,XX611,P1,
B,Bromsgrove District Council,Surpluses/deficits on trading undertakings,Internal Business Units and Support Services,Supplies and Services,Services,D47,Consultants' fees,28/03/2013,180167,306.90,Revenue income and expenditure,Giant Professional Ltd,10137,1,VP,201212,IT12,P1,
B,Bromsgrove District Council,Environmental Services,,Supplies and Services,Services,D43,Training fees,27/03/2013,180168,90.00,Revenue income and expenditure,EPIC,7485,1,VO,201212,YA09,P1,
B,Bromsgrove District Council,Corporate and Democratic Core,Corporate Management,Supplies and Services,Services,D49,Miscellaneous services,28/03/2013,180169,"16,001.00",Revenue income and expenditure,Grant Thornton,7394,1,VN,201212,CM01,P1,
B,Bromsgrove District Council,Surpluses/deficits on trading undertakings,Depot Services,Supplies and Services,"Equipment, furniture and materials",D06,Materials - purchased,27/03/2013,180172,60.00,Revenue income and expenditure,Truckstop Hawkes (Egglaroy Ltd T/A),6329,1,VO,201212,DW11,P1,
B,Bromsgrove District Council,Surpluses/deficits on trading undertakings,Depot Services,Supplies and Services,"Equipment, furniture and materials",D06,Materials - purchased,27/03/2013,180172,14.95,Revenue income and expenditure,Truckstop Hawkes (Egglaroy Ltd T/A),6329,1,VO,201212,DS62,P1,
B,Bromsgrove District Council,Surpluses/deficits on trading undertakings,Depot Services,Supplies and Services,"Equipment, furniture and materials",D06,Materials - purchased,27/03/2013,180172,59.75,Revenue income and expenditure,Truckstop Hawkes (Egglaroy Ltd T/A),6329,1,VO,201212,DT41,P1,
B,Bromsgrove District Council,,,Supplies and Services,Communication and computing,D59,Telephones,27/03/2013,180178,333.51,Revenue income and expenditure,Redditch Borough Council,1533,5,VN,201212,CD61,P1,
B,Bromsgrove District Council,Environmental Services,,Supplies and Services,Services,D43,Training fees,28/03/2013,180188,120.00,Revenue income and expenditure,EPIC,7485,1,VP,201212,YA09,P4,
B,Bromsgrove District Council,Highways and transport services,Off-street Parking,Supplies and Services,"Equipment, furniture and materials",D03,Equipment - rental/lease,27/03/2013,180192,215.45,Revenue income and expenditure,Ricoh UK Ltd,6528,1,VN,201212,CP00,P1,
B,Bromsgrove District Council,Surpluses/deficits on trading undertakings,Internal Business Units and Support Services,Supplies and Services,Communication and computing,D51,Printing and stationery,28/03/2013,180193,"1,519.27",Revenue income and expenditure,Ricoh UK Ltd,6528,1,VN,201212,PS01,P1,
B,Bromsgrove District Council,Surpluses/deficits on trading undertakings,Internal Business Units and Support Services,Supplies and Services,Services,D47,Consultants' fees,28/03/2013,180199,453.87,Revenue income and expenditure,Local Government Association,4059,5,VP,201212,LS00,P1,
B,Bromsgrove District Council,Not BVACOP Service,Not BVACOP Sub Division,Current Assets,Stocks,300,Stock Movement,28/03/2013,180200,332.60,,Dennis Eagle Ltd,1191,1,VP,201212,XX611,P1,
B,Bromsgrove District Council,Not BVACOP Service,Not BVACOP Sub Division,Capital Expenditure,"Plant, vehicles and equipment",X22,Computer equipment etc.,28/03/2013,180204,"10,500.00",Capital income and expenditure,IDOX Software Ltd,6852,1,VP,201212,CAPR,P1,
B,Bromsgrove District Council,Surpluses/deficits on trading undertakings,Depot Services,Supplies and Services,"Equipment, furniture and materials",D06,Materials - purchased,28/03/2013,180205,"1,200.00",Revenue income and expenditure,UK Container Maintenance UK Ltd,7672,1,VP,201212,DW14,P1,
B,Bromsgrove District Council,Not BVACOP Service,Not BVACOP Sub Division,Current Assets,Stocks,300,Stock Movement,29/03/2013,180219,126.50,,Senate Electrical,9582,1,VO,201212,XX611,P1,
B,Bromsgrove District Council,Not BVACOP Service,Not BVACOP Sub Division,Current Assets,Stocks,300,Stock Movement,07/03/2013,2066048,35.50,,National Westminster Bank plc,0,,PC,201212,XX611,P6,GPC Purchases Feb 13 - Springmasters
B,Bromsgrove District Council,Not BVACOP Service,Not BVACOP Sub Division,Current Assets,Stocks,300,Stock Movement,07/03/2013,2066048,160.00,,National Westminster Bank plc,0,,PC,201212,XX611,P6,GPC Purchases Feb 13 - Wasteparts
B,Bromsgrove District Council,Surpluses/deficits on trading undertakings,Depot Services,Transport Related Expenditure,Direct Transport Costs,C07,Licences,07/03/2013,2066048,652.50,Revenue income and expenditure,National Westminster Bank plc,0,,PC,201212,DW18,P5,GPC Purchases Feb 13 - DVLA
B,Bromsgrove District Council,Surpluses/deficits on trading undertakings,Depot Services,Employees,Indirect Employee Expenses,A23,Training for professional qualifications,07/03/2013,2066048,113.75,Revenue income and expenditure,National Westminster Bank plc,0,,PC,201212,DP02,P3,GPC Purchases Feb 13 - DSA
B,Bromsgrove District Council,Environmental Services,Cemeteries,Supplies and Services,"Equipment, furniture and materials",D06,Materials - purchased,07/03/2013,2066048,315.00,Revenue income and expenditure,National Westminster Bank plc,0,,PC,201212,CE01,P6,GPC Purchases Feb 13 - Travis Perkins
B,Bromsgrove District Council,Surpluses/deficits on trading undertakings,Depot Services,Transport Related Expenditure,Direct Transport Costs,C07,Licences,07/03/2013,2066048,335.00,Revenue income and expenditure,National Westminster Bank plc,0,,PC,201212,DW21,P5,GPC Purchases Feb 13 - DVLA
B,Bromsgrove District Council,Surpluses/deficits on trading undertakings,Depot Services,Transport Related Expenditure,Direct Transport Costs,C07,Licences,07/03/2013,2066048,385.00,Revenue income and expenditure,National Westminster Bank plc,0,,PC,201212,DS62,P5,GPC Purchases Feb 13 - DVLA
B,Bromsgrove District Council,Surpluses/deficits on trading undertakings,Internal Business Units and Support Services,Employees,Indirect Employee Expenses,A36,Employees' professional subscriptions,07/03/2013,2066049,191.00,Revenue income and expenditure,National Westminster Bank plc,0,,PC,201212,LS00,P3,GPC Purchases Feb 13 - Gen Council
B,Bromsgrove District Council,Surpluses/deficits on trading undertakings,Depot Services,Supplies and Services,Communication and computing,D56,Computer - hardware,07/03/2013,2066049,99.97,Revenue income and expenditure,National Westminster Bank plc,0,,PC,201212,BT01,P6,GPC Purchases Feb 13 - Amazon
B,Bromsgrove District Council,Surpluses/deficits on trading undertakings,Depot Services,Premise Related Expenditure,Rents,B33,Bed-and-breakfast payments,07/03/2013,2066049,49.17,Revenue income and expenditure,National Westminster Bank plc,0,,PC,201212,BT01,P6,GPC Purchases Feb 13 - Premier Inn
B,Bromsgrove District Council,,,Supplies and Services,Catering,D23,Catering (incl.food purchases),07/03/2013,2066049,16.67,Revenue income and expenditure,National Westminster Bank plc,0,,PC,201212,CD41,P4,GPC Purchases Feb 13 - Co-op
B,Bromsgrove District Council,Surpluses/deficits on trading undertakings,Depot Services,Supplies and Services,Communication and computing,D51,Printing and stationery,07/03/2013,2066049,68.27,Revenue income and expenditure,National Westminster Bank plc,0,,PC,201212,BT01,P6,GPC Purchases Feb 13 - Amazon
B,Bromsgrove District Council,,,Supplies and Services,Services,D49,Miscellaneous services,07/03/2013,2066049,"1,488.00",Revenue income and expenditure,National Westminster Bank plc,0,,PC,201212,RB01,P4,GPC Purchases Feb 13 - HM Courts
B,Bromsgrove District Council,Surpluses/deficits on trading undertakings,Internal Business Units and Support Services,Supplies and Services,Catering,D23,Catering (incl.food purchases),07/03/2013,2066049,12.60,Revenue income and expenditure,National Westminster Bank plc,0,,PC,201212,LS05,P4,GPC Purchases Feb 13 - Co-op
B,Bromsgrove District Council,Surpluses/deficits on trading undertakings,Internal Business Units and Support Services,Employees,Indirect Employee Expenses,A36,Employees' professional subscriptions,08/03/2013,2066063,0.00,Revenue income and expenditure,National Westminster Bank plc,0,,PC,201212,LS00,P3,Adj Jrnl 2066049 Payroll No
B,Bromsgrove District Council,Surpluses/deficits on trading undertakings,Depot Services,Employees,Indirect Employee Expenses,A23,Training for professional qualifications,08/03/2013,2066065,-8.75,Revenue income and expenditure,National Westminster Bank plc,0,,PC,201212,DP02,P3,Adj jrnl 2066048
B,Bromsgrove District Council,Surpluses/deficits on trading undertakings,Depot Services,Supplies and Services,Services,D43,Training fees,08/03/2013,2066065,8.75,Revenue income and expenditure,National Westminster Bank plc,0,,PC,201212,DP02,P3,Adj jrnl 2066048
B,Bromsgrove District Council,Surpluses/deficits on trading undertakings,Internal Business Units and Support Services,Employees,Indirect Employee Expenses,A23,Training for professional qualifications,14/03/2013,2066129,-174.00,Revenue income and expenditure,National Westminster Bank plc,0,,PC,201212,IT12,0,GPC January 13 VUE VMware
B,Bromsgrove District Council,Surpluses/deficits on trading undertakings,Internal Business Units and Support Services,Employees,Indirect Employee Expenses,A23,Training for professional qualifications,14/03/2013,2066129,174.00,Revenue income and expenditure,National Westminster Bank plc,0,,PC,201212,IT00,0,GPC January 13 VUE VMware
B,Bromsgrove District Council,Surpluses/deficits on trading undertakings,Depot Services,Supplies and Services,Miscellaneous expenses,D88,Miscellaneous expenses,03/04/2013,2066400,145.50,Revenue income and expenditure,National Westminster Bank plc,0,,PC,201212,DP02,P3,GPC  March 13 - TV Licensing
B,Bromsgrove District Council,Surpluses/deficits on trading undertakings,Depot Services,Supplies and Services,"Equipment, furniture and materials",D08,Test Purchases,03/04/2013,2066400,205.00,Revenue income and expenditure,National Westminster Bank plc,0,,PC,201212,DT42,P5,GPC  March 13 - VOSA
B,Bromsgrove District Council,Surpluses/deficits on trading undertakings,Depot Services,Transport Related Expenditure,Direct Transport Costs,C07,Licences,03/04/2013,2066400,489.30,Revenue income and expenditure,National Westminster Bank plc,0,,PC,201212,DW21,P5,GPC  March 13 - DVLA
B,Bromsgrove District Council,Surpluses/deficits on trading undertakings,Depot Services,Supplies and Services,"Equipment, furniture and materials",D06,Materials - purchased,03/04/2013,2066400,27.29,Revenue income and expenditure,National Westminster Bank plc,0,,PC,201212,DS62,P6,GPC  March 13 - Screwfix
B,Bromsgrove District Council,Surpluses/deficits on trading undertakings,Depot Services,Transport Related Expenditure,Direct Transport Costs,C07,Licences,03/04/2013,2066400,217.50,Revenue income and expenditure,National Westminster Bank plc,0,,PC,201212,DS62,P5,GPC  March 13 - DVLA
B,Bromsgrove District Council,Environmental Services,Public Health,Transport Related Expenditure,Direct Transport Costs,C07,Licences,03/04/2013,2066400,217.50,Revenue income and expenditure,National Westminster Bank plc,0,,PC,201212,HM13,P5,GPC  March 13 - DVLA
B,Bromsgrove District Council,Environmental Services,Public Health,Supplies and Services,"Equipment, furniture and materials",D06,Materials - purchased,03/04/2013,2066400,32.52,Revenue income and expenditure,National Westminster Bank plc,0,,PC,201212,EH02,P6,GPC  March 13 - Ron Smith
B,Bromsgrove District Council,Surpluses/deficits on trading undertakings,Depot Services,Employees,Indirect Employee Expenses,A23,Training for professional qualifications,03/04/2013,2066400,52.50,Revenue income and expenditure,National Westminster Bank plc,0,,PC,201212,DP02,P3,GPC  March 13 - DSA
B,Bromsgrove District Council,Surpluses/deficits on trading undertakings,Depot Services,Supplies and Services,Miscellaneous expenses,D88,Miscellaneous expenses,03/04/2013,2066400,18.00,Revenue income and expenditure,National Westminster Bank plc,0,,PC,201212,DP02,P3,GPC  March 13 - Environment Agency
B,Bromsgrove District Council,Surpluses/deficits on trading undertakings,Depot Services,Transport Related Expenditure,Direct Transport Costs,C07,Licences,03/04/2013,2066400,420.00,Revenue income and expenditure,National Westminster Bank plc,0,,PC,201212,DW11,P5,GPC  March 13 - DVLA
B,Bromsgrove District Council,Surpluses/deficits on trading undertakings,Depot Services,Transport Related Expenditure,Direct Transport Costs,C07,Licences,03/04/2013,2066400,552.50,Revenue income and expenditure,National Westminster Bank plc,0,,PC,201212,DW32,P5,GPC  March 13 - DVLA
B,Bromsgrove District Council,Surpluses/deficits on trading undertakings,Depot Services,Premise Related Expenditure,Rents,B33,Bed-and-breakfast payments,04/04/2013,2066428,53.33,Revenue income and expenditure,National Westminster Bank plc,0,,PC,201212,BT01,P6,GPC  March13 - Premier Travel
B,Bromsgrove District Council,,,Supplies and Services,"Equipment, furniture and materials",D01,Equipment - purchase,04/04/2013,2066428,13.45,Revenue income and expenditure,National Westminster Bank plc,0,,PC,201212,CD41,P6,GPC  March13 - Argos
B,Bromsgrove District Council,Surpluses/deficits on trading undertakings,Internal Business Units and Support Services,Supplies and Services,Catering,D23,Catering (incl.food purchases),04/04/2013,2066428,18.11,Revenue income and expenditure,National Westminster Bank plc,0,,PC,201212,LS05,P4,GPC  March13 - co-op
B,Bromsgrove District Council,Surpluses/deficits on trading undertakings,Internal Business Units and Support Services,Supplies and Services,"Equipment, furniture and materials",D01,Equipment - purchase,04/04/2013,2066428,8.14,Revenue income and expenditure,National Westminster Bank plc,0,,PC,201212,ES20,P5,GPC  March13 - Amazon eu
B,Bromsgrove District Council,General Fund Housing Services,Other temporary Accommodation,Supplies and Services,"Equipment, furniture and materials",D01,Equipment - purchase,04/04/2013,2066428,98.00,Revenue income and expenditure,National Westminster Bank plc,0,,PC,201212,HG19,P5,GPC  March13 - Tesco
B,Bromsgrove District Council,Planning and Development Services,Advice,Supplies and Services,"Equipment, furniture and materials",D04,Equipment - specialist,04/04/2013,2066428,5.60,Revenue income and expenditure,National Westminster Bank plc,0,,PC,201212,DC00,P5,GPC  March13 - Amazon
B,Bromsgrove District Council,Cultural and Related Services,Community Centres,Supplies and Services,"Equipment, furniture and materials",D01,Equipment - purchase,04/04/2013,2066428,11.21,Revenue income and expenditure,National Westminster Bank plc,0,,PC,201212,SS01,P6,GPC  March13 - Amazon Market
B,Bromsgrove District Council,Surpluses/deficits on trading undertakings,Internal Business Units and Support Services,Supplies and Services,Miscellaneous expenses,D85,General expenses,04/04/2013,2066428,199.00,Revenue income and expenditure,National Westminster Bank plc,0,,PC,201212,IT00,P6,GPC  March13 - Monster ukl
B,Bromsgrove District Council,Surpluses/deficits on trading undertakings,Internal Business Units and Support Services,Supplies and Services,"Equipment, furniture and materials",D04,Equipment - specialist,04/04/2013,2066428,153.00,Revenue income and expenditure,National Westminster Bank plc,0,,PC,201212,ES20,P5,GPC  March13 - Food Safety
B,Bromsgrove District Council,,,Supplies and Services,Catering,D23,Catering (incl.food purchases),04/04/2013,2066428,17.76,Revenue income and expenditure,National Westminster Bank plc,0,,PC,201212,CD41,P4,GPC  March13 - Asda
B,Bromsgrove District Council,Surpluses/deficits on trading undertakings,Internal Business Units and Support Services,Supplies and Services,Services,D47,Consultants' fees,05/04/2013,2066438,405.00,Revenue income and expenditure,National Westminster Bank plc,0,,PC,201212,LS00,P3,GPC  March 13 - bar professional
B,Bromsgrove District Council,,,Supplies and Services,Catering,D24,Civic hospitality,05/04/2013,2066438,9.54,Revenue income and expenditure,National Westminster Bank plc,0,,PC,201212,CD61,P4,GPC  March 13 - co-op
B,Bromsgrove District Council,Environmental Services,,Supplies and Services,Communication and computing,D52,Books and publications,05/04/2013,2066442,42.71,Revenue income and expenditure,National Westminster Bank plc,0,,PC,201212,YA09,P4,GPC  March 13 - Amazon Market
B,Bromsgrove District Council,General Fund Housing Services,Housing Strategy,Premise Related Expenditure,Rents,B30,Rents,04/03/2013,7050060,400.00,Revenue income and expenditure,REDACTED PERSONAL DATA,9774,3,AP,201212,HG51,P4,
B,Bromsgrove District Council,General Fund Housing Services,Housing Strategy,Premise Related Expenditure,Rents,B30,Rents,04/03/2013,7050061,550.00,Revenue income and expenditure,REDACTED PERSONAL DATA,9701,3,AP,201212,HG51,P4,
B,Bromsgrove District Council,Planning and Development Services,Other Building control work,Employees,Indirect Employee Expenses,A36,Employees' professional subscriptions,07/03/2013,7050073,489.00,Revenue income and expenditure,RICS Membership Renewals,1995,1,AP,201212,BC00,P4,
B,Bromsgrove District Council,Planning and Development Services,Other Building control work,Employees,Indirect Employee Expenses,A36,Employees' professional subscriptions,07/03/2013,7050074,489.00,Revenue income and expenditure,RICS Membership Renewals,1995,1,AP,201212,BC00,P4,
B,Bromsgrove District Council,Surpluses/deficits on trading undertakings,Internal Business Units and Support Services,Supplies and Services,Communication and computing,D51,Printing and stationery,07/03/2013,7050076,"-1,377.52",Revenue income and expenditure,Ricoh UK Ltd,6528,1,AP,201212,PS01,P1,
B,Bromsgrove District Council,Surpluses/deficits on trading undertakings,Internal Business Units and Support Services,Supplies and Services,Communication and computing,D51,Printing and stationery,07/03/2013,7050077,"-1,377.53",Revenue income and expenditure,Ricoh UK Ltd,6528,1,AP,201212,PS01,P1,
B,Bromsgrove District Council,General Fund Housing Services,Housing Strategy,Premise Related Expenditure,Rents,B30,Rents,11/03/2013,7050079,400.00,Revenue income and expenditure,REDACTED PERSONAL DATA,9892,3,AP,201212,HG51,P4,
B,Bromsgrove District Council,,,Employees,Indirect Employee Expenses,A36,Employees' professional subscriptions,13/03/2013,7050081,146.00,Revenue income and expenditure,IRRV,1361,1,AP,201212,RB10,0,
B,Bromsgrove District Council,General Fund Housing Services,Housing Strategy,Premise Related Expenditure,Rents,B30,Rents,15/03/2013,7050087,550.00,Revenue income and expenditure,Parsons Choice,7907,3,AP,201212,HG51,P4,
B,Bromsgrove District Council,,,Supplies and Services,Services,D49,Miscellaneous services,21/03/2013,7050107,140.00,Revenue income and expenditure,H M C T S,6457,1,AP,201212,RB10,P4,
B,Bromsgrove District Council,Surpluses/deficits on trading undertakings,Internal Business Units and Support Services,Supplies and Services,Services,D49,Miscellaneous services,21/03/2013,7050107,70.00,Revenue income and expenditure,H M C T S,6457,1,AP,201212,LS00,P4,
B,Bromsgrove District Council,Surpluses/deficits on trading undertakings,Depot Services,Transport Related Expenditure,Direct Transport Costs,C55,Vehicle repairs - accidental damage,28/03/2013,7050112,52.00,Revenue income and expenditure,REDACTED PERSONAL DATA,10345,3,AP,201212,DW11,0,
B,Bromsgrove District Council,Surpluses/deficits on trading undertakings,Depot Services,Supplies and Services,Communication and computing,D53,Postage/packaging,28/03/2013,7050113,25.58,Revenue income and expenditure,Avery Weigh-Tronix,2314,1,AP,201212,CD20,0,
B,Bromsgrove District Council,Cultural and Related Services,Indoor Sports and Recreation Facilities,Supplies and Services,Miscellaneous expenses,D88,Miscellaneous expenses,28/03/2013,7050134,"4,336.80",Revenue income and expenditure,Wychavon Leisure Community Association Ltd,7352,1,AP,201212,SC01,P5,
B,Bromsgrove District Council,Surpluses/deficits on trading undertakings,Internal Business Units and Support Services,Supplies and Services,Services,D49,Miscellaneous services,06/03/2013,2066021,9.00,Revenue income and expenditure,Land Registry,0,,JB,201212,LS00,P3,
B,Bromsgrove District Council,Cultural and Related Services,Community parks and open spaces,Supplies and Services,Miscellaneous expenses,D85,General expenses,06/03/2013,2066021,4.00,Revenue income and expenditure,Land Registry,0,,JB,201212,RG01,0,
B,Bromsgrove District Council,Environmental Services,Community Safety (Crime Reduction),Supplies and Services,Services,D49,Miscellaneous services,07/03/2013,2066034,7.00,Revenue income and expenditure,Land Registry,0,,JB,201212,CS21,P3,
B,Bromsgrove District Council,Surpluses/deficits on trading undertakings,Internal Business Units and Support Services,Supplies and Services,Services,D49,Miscellaneous services,07/03/2013,2066034,10.00,Revenue income and expenditure,Land Registry,0,,JB,201212,LS00,P3,
B,Bromsgrove District Council,General Fund Housing Services,Housing Strategy,Supplies and Services,Miscellaneous expenses,D88,Miscellaneous expenses,07/03/2013,2066034,80.00,Revenue income and expenditure,Land Registry,0,,JB,201212,HG20,P3,
B,Bromsgrove District Council,Planning and Development Services,Advice,Supplies and Services,Miscellaneous expenses,D88,Miscellaneous expenses,07/03/2013,2066034,3.00,Revenue income and expenditure,Land Registry,0,,JB,201212,DC00,P3,
B,Bromsgrove District Council,Planning and Development Services,Supplementary planning guidance,Supplies and Services,Miscellaneous expenses,D88,Miscellaneous expenses,08/03/2013,2066061,40.00,Revenue income and expenditure,Land Registry,0,,JB,201212,LP01,P3,
B,Bromsgrove District Council,Cultural and Related Services,Community parks and open spaces,Supplies and Services,Miscellaneous expenses,D85,General expenses,08/03/2013,2066061,12.00,Revenue income and expenditure,Land Registry,0,,JB,201212,RG01,P3,
B,Bromsgrove District Council,Non-Distributable Costs,Non-Distributable Overheads,Employees,Indirect Employee Expenses,A20,Unapportionable employee overheads,12/03/2013,2066094,"71,708.33",Revenue income and expenditure,Worcs CC LGPS,0,,JB,201212,ND00,0,
B,Bromsgrove District Council,,,Supplies and Services,Miscellaneous expenses,D88,Miscellaneous expenses,13/03/2013,2066107,3.00,Revenue income and expenditure,Land Registry,0,,JB,201212,RB03,P3,
B,Bromsgrove District Council,Surpluses/deficits on trading undertakings,Internal Business Units and Support Services,Supplies and Services,Services,D49,Miscellaneous services,13/03/2013,2066107,25.00,Revenue income and expenditure,Land Registry,0,,JB,201212,LS00,P3,
B,Bromsgrove District Council,Planning and Development Services,Supplementary planning guidance,Supplies and Services,Miscellaneous expenses,D88,Miscellaneous expenses,13/03/2013,2066107,90.00,Revenue income and expenditure,Land Registry,0,,JB,201212,LP01,P3,
B,Bromsgrove District Council,Surpluses/deficits on trading undertakings,Internal Business Units and Support Services,Supplies and Services,Services,D49,Miscellaneous services,13/03/2013,2066110,198.48,Revenue income and expenditure,HSBC,0,,JB,201212,FS07,P3,
B,Bromsgrove District Council,,,Supplies and Services,Services,D49,Miscellaneous services,13/03/2013,2066110,19.09,Revenue income and expenditure,HSBC,0,,JB,201212,RB01,P3,
B,Bromsgrove District Council,,,Supplies and Services,Services,D49,Miscellaneous services,15/03/2013,2066135,594.44,Revenue income and expenditure,HSBC,0,,JB,201212,RB01,P3,
B,Bromsgrove District Council,Surpluses/deficits on trading undertakings,Internal Business Units and Support Services,Supplies and Services,Services,D49,Miscellaneous services,15/03/2013,2066135,339.20,Revenue income and expenditure,HSBC,0,,JB,201212,FS07,P3,
B,Bromsgrove District Council,Surpluses/deficits on trading undertakings,Internal Business Units and Support Services,Supplies and Services,Services,D49,Miscellaneous services,19/03/2013,2066162,"1,271.81",Revenue income and expenditure,Hsbc,0,,JB,201212,FS07,P3,
B,Bromsgrove District Council,,,Supplies and Services,Services,D49,Miscellaneous services,20/03/2013,2066188,2.00,Revenue income and expenditure,Land Registry,0,,JB,201212,CM11,P3,
B,Bromsgrove District Council,Surpluses/deficits on trading undertakings,Internal Business Units and Support Services,Supplies and Services,Services,D49,Miscellaneous services,22/03/2013,2066257,19.95,Revenue income and expenditure,Worldpay,0,,JB,201212,FS07,P6,
B,Bromsgrove District Council,,,Supplies and Services,Miscellaneous expenses,D88,Miscellaneous expenses,27/03/2013,2066309,3.00,Revenue income and expenditure,Land Registry,0,,JB,201212,RB03,P3,
B,Bromsgrove District Council,General Fund Housing Services,Housing Strategy,Supplies and Services,Miscellaneous expenses,D88,Miscellaneous expenses,27/03/2013,2066309,40.00,Revenue income and expenditure,Land Registry,0,,JB,201212,HG20,P3,
B,Bromsgrove District Council,Surpluses/deficits on trading undertakings,Internal Business Units and Support Services,Supplies and Services,Services,D49,Miscellaneous services,27/03/2013,2066309,3.00,Revenue income and expenditure,Land Registry,0,,JB,201212,LS00,P3,
B,Bromsgrove District Council,Cultural and Related Services,Community parks and open spaces,Supplies and Services,Miscellaneous expenses,D85,General expenses,27/03/2013,2066309,7.00,Revenue income and expenditure,Land Registry,0,,JB,201212,RG01,P3,
,,,,,,,,,,"977,030.74",,,,,,,,,
